Workbook

Sheet Cover
A3: Navigator
C5: =Client_Name -> SumProduct Pty Limited
C6: =Model_Name -> SP Aggregating Time Periods.xlsm
C14: Primary Developer: Liam Bastick
C16: General Cover Notes:
C17: Simple example showing how to sum up multiple periods in an output sheet.
C21: Any queries, please e-mail: | G21: liam.bastick@sumproduct.com
C22: Website: | G22: www.sumproduct.com

Sheet Navigator
A1: Navigator
A2: =Model_Name -> SP Aggregating Time Periods.xlsm
A3: Navigator
E4: Error Checks: | G4: =Overall_Error_Check -> 0
B7: 1 | C7: Table of Contents
F9: Cover
F10: Style Guide
F11: Model Parameters
F12: Timing
F13: Assumptions
F14: Outputs
F15: Lookup Data
F16: Error Checks

Sheet Style Guide
A1: =IF(ISERROR(RIGHT(CELL("filename",A1),LEN(CELL("filename",A1))-FIND("]",CELL("filename",A1)))), "", RIGHT(CELL("filename",A1),LEN(CELL("filename",A1))-FIND("]",CELL("filename",A1)))) -> Style Guide
A2: =Model_Name -> SP Aggregating Time Periods.xlsm
A3: Navigator
E4: Error Checks: | I4: =Overall_Error_Check -> 0
B6: =MAX($B$5:$B5)+1 -> 1 | C6: Formatting of Headers / Dividers
C8: Description | I8: Display | K8: Style Name
C10: Sheet Title | I10: =C10 -> Sheet Title | K10: Sheet Title
C11: Model Name | I11: =C11 -> Model Name | K11: Model Name
C13: Header 1 | I13: =C13 -> Header 1 | K13: Header 1
C14: Header 2 | I14: =C14 -> Header 2 | K14: Header 2
C15: Header 3 | I15: =C15 -> Header 3 | K15: Header 3
C16: Header 4 | I16: =C16 -> Header 4 | K16: Header 4
C18: Notes | I18: =C18 -> Notes | K18: Notes
C20: Table Heading | I20: =C20 -> Table Heading | K20: Table Heading
B23: =MAX($B$5:$B22)+1 -> 2 | C23: Individual Cell Styles
C25: Description | I25: Display | K25: Style Name
C27: Assumption | I27: Assumption | K27: =C27 -> Assumption
C29: Constraint | I29: =C29 -> Constraint | K29: =C29 -> Constraint
C31: Empty | K31: =C31 -> Empty
C33: Error Check | I33: 0 | K33: =C33 -> Error Check
C35: Hyperlink | I35: Hyperlink | K35: =C35 -> Hyperlink
C37: Internal Reference | I37: ='Error Checks'!E12 -> Not Used | K37: =C37 -> Internal Reference
C39: Line Calculation | I39: 77 | K39: Line Calc
C41: Line Total | I41: =I39 -> 77 | K41: =C41 -> Line Total
C43: Parameter | I43: 365 | K43: =C43 -> Parameter
C45: Range Name Description | I45: Not_Named | K45: =C45 -> Range Name Description
C47: Row Reference | I47: =ROW(C47) -> 47 | K47: Row Ref
C49: Row Summary | I49: =I41 -> 77 | K49: =C49 -> Row Summary
C51: Units | I51: A$ | K51: =C51 -> Units
C53: WIP | K53: =C53 -> WIP
B56: =MAX($B$5:$B55)+1 -> 3 | C56: Numerical Styles
C58: Description | I58: Display | K58: Style Name
C60: Comma | I60: 123456.789 | K60: =C60 -> Comma
C62: Comma [0] | I62: -123456.789 | K62: Comma [0]
C64: Currency | I64: 123456.789 | K64: Currency
C66: Currency [0] | I66: 123456.789 | K66: Currency [0]
C68: Date | I68: =TODAY() -> 2018-09-02 | K68: =C68 -> Date
C70: Date Heading | I70: =TODAY() -> 2018-09-02 | K70: =C70 -> Date Heading
C72: Numbers 0 | I72: -123456.789 | K72: =C72 -> Numbers 0
C74: Percent | I74: 0.5 | K74: =C74 -> Percent

Sheet Model Parameters
A1: =IF(ISERROR(RIGHT(CELL("filename",A1),LEN(CELL("filename",A1))-FIND("]",CELL("filename",A1)))), "", RIGHT(CELL("filename",A1),LEN(CELL("filename",A1))-FIND("]",CELL("filename",A1)))) -> Model Parameters
A2: =Model_Name -> SP Aggregating Time Periods.xlsm
A3: Navigator
E4: Error Checks: | I4: =Overall_Error_Check -> 0
B6: =MAX($B$5:$B5)+1 -> 1 | C6: General
C8: Key Inputs
E10: General
E11: Model Name | G11: =IF(ISERROR(OR(FIND("[",CELL("filename",A1)),FIND("]",CELL("filename",A1)))),"",MID(CELL("filename",A1),FIND("[",CELL("filename",A1))+1,FIND("]",CELL("filename",A1))-FIND("[",CELL("filename",A1))-1)) -> SP Aggregating Time Periods.xlsm
E12: Client Name | G12: SumProduct Pty Limited
B15: =MAX($B$5:$B14)+1 -> 2 | C15: General Range Names
C17: Technical Assumptions
E19: Days in Year | G19: 365
E20: Months in Month | G20: 1
E21: Months in Quarter | G21: 3
E22: Months in Half Yr | G22: 6
E23: Months in Year | G23: 12
E24: Quarters in Year | G24: 4
E26: Rounding Accuracy | G26: 5
E28: Very Large Number | G28: 1e+99
E29: Very Small Number | G29: 1e-08
E31: Thousand | G31: 1000

Sheet Timing
A1: =IF(ISERROR(RIGHT(CELL("filename",A1),LEN(CELL("filename",A1))-FIND("]",CELL("filename",A1)))), "", RIGHT(CELL("filename",A1),LEN(CELL("filename",A1))-FIND("]",CELL("filename",A1)))) -> Timing
A2: =Model_Name -> SP Aggregating Time Periods.xlsm
A3: Navigator
B4: Error Checks: | F4: =Overall_Error_Check -> 0
J5: =J$7 -> 2019-01-31 | K5: =K$7 -> 2019-02-28 | L5: =L$7 -> 2019-03-31 | M5: =M$7 -> 2019-04-30 | N5: =N$7 -> 2019-05-31 | O5: =O$7 -> 2019-06-30 | P5: 2019-07-31 | Q5: 2019-08-31 | R5: 2019-09-30 | S5: 2019-10-31 | T5: 2019-11-30 | U5: 2019-12-31 | V5: 2020-01-31 | W5: 2020-02-29 | X5: 2020-03-31 | Y5: 2020-04-30 | Z5: 2020-05-31 | AA5: 2020-06-30 | AB5: 2020-07-31 | AC5: 2020-08-31 | AD5: 2020-09-30 | AE5: 2020-10-31 | AF5: 2020-11-30 | AG5: 2020-12-31 | AH5: 2021-01-31 | AI5: 2021-02-28 | AJ5: 2021-03-31 | AK5: 2021-04-30 | AL5: 2021-05-31 | AM5: 2021-06-30 | AN5: 2021-07-31 | AO5: 2021-08-31 | AP5: 2021-09-30 | AQ5: 2021-10-31 | AR5: 2021-11-30 | AS5: 2021-12-31 | AT5: 2022-01-31 | AU5: 2022-02-28 | AV5: 2022-03-31 | AW5: 2022-04-30 | AX5: 2022-05-31 | AY5: 2022-06-30 | AZ5: 2022-07-31 | BA5: 2022-08-31 | BB5: 2022-09-30 | BC5: 2022-10-31 | BD5: 2022-11-30 | BE5: 2022-12-31 | BF5: 2023-01-31 | BG5: 2023-02-28 | BH5: 2023-03-31 | BI5: 2023-04-30 | BJ5: 2023-05-31 | BK5: 2023-06-30 | BL5: 2023-07-31 | BM5: 2023-08-31 | BN5: 2023-09-30 | BO5: 2023-10-31 | BP5: 2023-11-30 | BQ5: 2023-12-31
C6: Start Date | J6: =IF(J$9=1,Model_Start_Date,I$7+1) -> 2019-01-01 | K6: 2019-02-01 | L6: 2019-03-01 | M6: 2019-04-01 | N6: 2019-05-01 | O6: 2019-06-01 | P6: 2019-07-01 | Q6: 2019-08-01 | R6: 2019-09-01 | S6: 2019-10-01 | T6: 2019-11-01 | U6: 2019-12-01 | V6: 2020-01-01 | W6: 2020-02-01 | X6: 2020-03-01 | Y6: 2020-04-01 | Z6: 2020-05-01 | AA6: 2020-06-01 | AB6: 2020-07-01 | AC6: 2020-08-01 | AD6: 2020-09-01 | AE6: 2020-10-01 | AF6: 2020-11-01 | AG6: 2020-12-01 | AH6: 2021-01-01 | AI6: 2021-02-01 | AJ6: 2021-03-01 | AK6: 2021-04-01 | AL6: 2021-05-01 | AM6: 2021-06-01 | AN6: 2021-07-01 | AO6: 2021-08-01 | AP6: =IF(AP$9=1,Model_Start_Date,AO$7+1) -> 2021-09-01 | AQ6: 2021-10-01 | AR6: 2021-11-01 | AS6: 2021-12-01 | AT6: 2022-01-01 | AU6: 2022-02-01 | AV6: 2022-03-01 | AW6: 2022-04-01 | AX6: 2022-05-01 | AY6: 2022-06-01 | AZ6: 2022-07-01 | BA6: 2022-08-01 | BB6: 2022-09-01 | BC6: 2022-10-01 | BD6: 2022-11-01 | BE6: 2022-12-01 | BF6: 2023-01-01 | BG6: 2023-02-01 | BH6: 2023-03-01 | BI6: 2023-04-01 | BJ6: 2023-05-01 | BK6: 2023-06-01 | BL6: 2023-07-01 | BM6: 2023-08-01 | BN6: 2023-09-01 | BO6: 2023-10-01 | BP6: 2023-11-01 | BQ6: 2023-12-01
C7: End Date | J7: =EOMONTH(J$6,MOD(Periodicity+Reporting_Month_Factor-MONTH(J$6),Periodicity)) -> 2019-01-31 | K7: 2019-02-28 | L7: 2019-03-31 | M7: 2019-04-30 | N7: 2019-05-31 | O7: 2019-06-30 | P7: 2019-07-31 | Q7: 2019-08-31 | R7: 2019-09-30 | S7: 2019-10-31 | T7: 2019-11-30 | U7: 2019-12-31 | V7: 2020-01-31 | W7: 2020-02-29 | X7: 2020-03-31 | Y7: 2020-04-30 | Z7: 2020-05-31 | AA7: 2020-06-30 | AB7: 2020-07-31 | AC7: 2020-08-31 | AD7: 2020-09-30 | AE7: 2020-10-31 | AF7: 2020-11-30 | AG7: 2020-12-31 | AH7: 2021-01-31 | AI7: 2021-02-28 | AJ7: 2021-03-31 | AK7: 2021-04-30 | AL7: 2021-05-31 | AM7: 2021-06-30 | AN7: 2021-07-31 | AO7: 2021-08-31 | AP7: =EOMONTH(AP$6,MOD(Periodicity+Reporting_Month_Factor-MONTH(AP$6),Periodicity)) -> 2021-09-30 | AQ7: 2021-10-31 | AR7: 2021-11-30 | AS7: 2021-12-31 | AT7: 2022-01-31 | AU7: 2022-02-28 | AV7: 2022-03-31 | AW7: 2022-04-30 | AX7: 2022-05-31 | AY7: 2022-06-30 | AZ7: 2022-07-31 | BA7: 2022-08-31 | BB7: 2022-09-30 | BC7: 2022-10-31 | BD7: 2022-11-30 | BE7: 2022-12-31 | BF7: 2023-01-31 | BG7: 2023-02-28 | BH7: 2023-03-31 | BI7: 2023-04-30 | BJ7: 2023-05-31 | BK7: 2023-06-30 | BL7: 2023-07-31 | BM7: 2023-08-31 | BN7: 2023-09-30 | BO7: 2023-10-31 | BP7: 2023-11-30 | BQ7: 2023-12-31
C8: Number of Days | J8: =J7-J6+1 -> 31 | K8: =K7-K6+1 -> 28 | L8: 31 | M8: 30 | N8: 31 | O8: =O7-O6+1 -> 30 | P8: 31 | Q8: 31 | R8: 30 | S8: 31 | T8: 30 | U8: 31 | V8: 31 | W8: 29 | X8: 31 | Y8: 30 | Z8: 31 | AA8: 30 | AB8: 31 | AC8: 31 | AD8: 30 | AE8: 31 | AF8: 30 | AG8: 31 | AH8: 31 | AI8: 28 | AJ8: 31 | AK8: 30 | AL8: 31 | AM8: 30 | AN8: 31 | AO8: =AO7-AO6+1 -> 31 | AP8: 30 | AQ8: 31 | AR8: 30 | AS8: 31 | AT8: 31 | AU8: 28 | AV8: 31 | AW8: 30 | AX8: 31 | AY8: 30 | AZ8: 31 | BA8: 31 | BB8: 30 | BC8: 31 | BD8: 30 | BE8: 31 | BF8: 31 | BG8: 28 | BH8: 31 | BI8: 30 | BJ8: 31 | BK8: 30 | BL8: 31 | BM8: 31 | BN8: 30 | BO8: 31 | BP8: 30 | BQ8: 31
C9: Counter | J9: =N(I$9)+1 -> 1 | K9: =N(J$9)+1 -> 2 | L9: 3 | M9: 4 | N9: 5 | O9: =N(N$9)+1 -> 6 | P9: =N(O$9)+1 -> 7 | Q9: =N(P$9)+1 -> 8 | R9: =N(Q$9)+1 -> 9 | S9: =N(R$9)+1 -> 10 | T9: =N(S$9)+1 -> 11 | U9: =N(T$9)+1 -> 12 | V9: =N(U$9)+1 -> 13 | W9: =N(V$9)+1 -> 14 | X9: =N(W$9)+1 -> 15 | Y9: =N(X$9)+1 -> 16 | Z9: =N(Y$9)+1 -> 17 | AA9: =N(Z$9)+1 -> 18 | AB9: =N(AA$9)+1 -> 19 | AC9: =N(AB$9)+1 -> 20 | AD9: =N(AC$9)+1 -> 21 | AE9: =N(AD$9)+1 -> 22 | AF9: =N(AE$9)+1 -> 23 | AG9: =N(AF$9)+1 -> 24 | AH9: =N(AG$9)+1 -> 25 | AI9: =N(AH$9)+1 -> 26 | AJ9: =N(AI$9)+1 -> 27 | AK9: =N(AJ$9)+1 -> 28 | AL9: =N(AK$9)+1 -> 29 | AM9: =N(AL$9)+1 -> 30 | AN9: =N(AM$9)+1 -> 31 | AO9: =N(AN$9)+1 -> 32 | AP9: =N(AO$9)+1 -> 33 | AQ9: =N(AP$9)+1 -> 34 | AR9: =N(AQ$9)+1 -> 35 | AS9: =N(AR$9)+1 -> 36 | AT9: =N(AS$9)+1 -> 37 | AU9: =N(AT$9)+1 -> 38 | AV9: =N(AU$9)+1 -> 39 | AW9: =N(AV$9)+1 -> 40 | AX9: =N(AW$9)+1 -> 41 | AY9: =N(AX$9)+1 -> 42 | AZ9: =N(AY$9)+1 -> 43 | BA9: =N(AZ$9)+1 -> 44 | BB9: =N(BA$9)+1 -> 45 | BC9: =N(BB$9)+1 -> 46 | BD9: =N(BC$9)+1 -> 47 | BE9: =N(BD$9)+1 -> 48 | BF9: =N(BE$9)+1 -> 49 | BG9: =N(BF$9)+1 -> 50 | BH9: =N(BG$9)+1 -> 51 | BI9: =N(BH$9)+1 -> 52 | BJ9: =N(BI$9)+1 -> 53 | BK9: =N(BJ$9)+1 -> 54 | BL9: =N(BK$9)+1 -> 55 | BM9: =N(BL$9)+1 -> 56 | BN9: =N(BM$9)+1 -> 57 | BO9: =N(BN$9)+1 -> 58 | BP9: =N(BO$9)+1 -> 59 | BQ9: =N(BP$9)+1 -> 60
B11: =MAX($B$10:$B10)+1 -> 1 | C11: Timing Assumptions
C13: Data (do not change once modelling has commenced)
D15: Model Start Date | H15: =DATE(YEAR(TODAY())+1,1,1) -> 2019-01-01
D17: Number of Months in a Full Period | H17: 1
D19: Example Reporting Month | H19: 12 | I19: ="e.g. "&TEXT(DATE(YEAR(Model_Start_Date)+IF(Example_Reporting_Month<MONTH(Model_Start_Date),1,0),Example_Reporting_Month+1,1)-1,"dd-Mmm-yy") -> e.g. 31-Dec-19
D21: Reporting Month Factor | H21: =MOD(Example_Reporting_Month-1,Periodicity)+1 -> 1
D23: Months per Year | H23: 12

Sheet Assumptions
A1: =IF(ISERROR(RIGHT(CELL("filename",A1),LEN(CELL("filename",A1))-FIND("]",CELL("filename",A1)))), "", RIGHT(CELL("filename",A1),LEN(CELL("filename",A1))-FIND("]",CELL("filename",A1)))) -> Assumptions
A2: =Model_Name -> SP Aggregating Time Periods.xlsm
A3: Navigator
B4: Error Checks: | F4: =Overall_Error_Check -> 0
J5: =Timing!J5 -> 2019-01-31 | K5: =Timing!K5 -> 2019-02-28 | L5: =Timing!L5 -> 2019-03-31 | M5: =Timing!M5 -> 2019-04-30 | N5: =Timing!N5 -> 2019-05-31 | O5: =Timing!O5 -> 2019-06-30 | P5: =Timing!P5 -> 2019-07-31 | Q5: =Timing!Q5 -> 2019-08-31 | R5: =Timing!R5 -> 2019-09-30 | S5: =Timing!S5 -> 2019-10-31 | T5: =Timing!T5 -> 2019-11-30 | U5: =Timing!U5 -> 2019-12-31 | V5: =Timing!V5 -> 2020-01-31 | W5: =Timing!W5 -> 2020-02-29 | X5: =Timing!X5 -> 2020-03-31 | Y5: =Timing!Y5 -> 2020-04-30 | Z5: =Timing!Z5 -> 2020-05-31 | AA5: =Timing!AA5 -> 2020-06-30 | AB5: =Timing!AB5 -> 2020-07-31 | AC5: =Timing!AC5 -> 2020-08-31 | AD5: =Timing!AD5 -> 2020-09-30 | AE5: =Timing!AE5 -> 2020-10-31 | AF5: =Timing!AF5 -> 2020-11-30 | AG5: =Timing!AG5 -> 2020-12-31 | AH5: =Timing!AH5 -> 2021-01-31 | AI5: =Timing!AI5 -> 2021-02-28 | AJ5: =Timing!AJ5 -> 2021-03-31 | AK5: =Timing!AK5 -> 2021-04-30 | AL5: =Timing!AL5 -> 2021-05-31 | AM5: =Timing!AM5 -> 2021-06-30 | AN5: =Timing!AN5 -> 2021-07-31 | AO5: =Timing!AO5 -> 2021-08-31 | AP5: =Timing!AP5 -> 2021-09-30 | AQ5: =Timing!AQ5 -> 2021-10-31 | AR5: =Timing!AR5 -> 2021-11-30 | AS5: =Timing!AS5 -> 2021-12-31 | AT5: =Timing!AT5 -> 2022-01-31 | AU5: =Timing!AU5 -> 2022-02-28 | AV5: =Timing!AV5 -> 2022-03-31 | AW5: =Timing!AW5 -> 2022-04-30 | AX5: =Timing!AX5 -> 2022-05-31 | AY5: =Timing!AY5 -> 2022-06-30 | AZ5: =Timing!AZ5 -> 2022-07-31 | BA5: =Timing!BA5 -> 2022-08-31 | BB5: =Timing!BB5 -> 2022-09-30 | BC5: =Timing!BC5 -> 2022-10-31 | BD5: =Timing!BD5 -> 2022-11-30 | BE5: =Timing!BE5 -> 2022-12-31 | BF5: =Timing!BF5 -> 2023-01-31 | BG5: =Timing!BG5 -> 2023-02-28 | BH5: =Timing!BH5 -> 2023-03-31 | BI5: =Timing!BI5 -> 2023-04-30 | BJ5: =Timing!BJ5 -> 2023-05-31 | BK5: =Timing!BK5 -> 2023-06-30 | BL5: =Timing!BL5 -> 2023-07-31 | BM5: =Timing!BM5 -> 2023-08-31 | BN5: =Timing!BN5 -> 2023-09-30 | BO5: =Timing!BO5 -> 2023-10-31 | BP5: =Timing!BP5 -> 2023-11-30 | BQ5: =Timing!BQ5 -> 2023-12-31
C6: =Timing!C6 -> Start Date | J6: =Timing!J6 -> 2019-01-01 | K6: =Timing!K6 -> 2019-02-01 | L6: =Timing!L6 -> 2019-03-01 | M6: =Timing!M6 -> 2019-04-01 | N6: =Timing!N6 -> 2019-05-01 | O6: =Timing!O6 -> 2019-06-01 | P6: =Timing!P6 -> 2019-07-01 | Q6: =Timing!Q6 -> 2019-08-01 | R6: =Timing!R6 -> 2019-09-01 | S6: =Timing!S6 -> 2019-10-01 | T6: =Timing!T6 -> 2019-11-01 | U6: =Timing!U6 -> 2019-12-01 | V6: =Timing!V6 -> 2020-01-01 | W6: =Timing!W6 -> 2020-02-01 | X6: =Timing!X6 -> 2020-03-01 | Y6: =Timing!Y6 -> 2020-04-01 | Z6: =Timing!Z6 -> 2020-05-01 | AA6: =Timing!AA6 -> 2020-06-01 | AB6: =Timing!AB6 -> 2020-07-01 | AC6: =Timing!AC6 -> 2020-08-01 | AD6: =Timing!AD6 -> 2020-09-01 | AE6: =Timing!AE6 -> 2020-10-01 | AF6: =Timing!AF6 -> 2020-11-01 | AG6: =Timing!AG6 -> 2020-12-01 | AH6: =Timing!AH6 -> 2021-01-01 | AI6: =Timing!AI6 -> 2021-02-01 | AJ6: =Timing!AJ6 -> 2021-03-01 | AK6: =Timing!AK6 -> 2021-04-01 | AL6: =Timing!AL6 -> 2021-05-01 | AM6: =Timing!AM6 -> 2021-06-01 | AN6: =Timing!AN6 -> 2021-07-01 | AO6: =Timing!AO6 -> 2021-08-01 | AP6: =Timing!AP6 -> 2021-09-01 | AQ6: =Timing!AQ6 -> 2021-10-01 | AR6: =Timing!AR6 -> 2021-11-01 | AS6: =Timing!AS6 -> 2021-12-01 | AT6: =Timing!AT6 -> 2022-01-01 | AU6: =Timing!AU6 -> 2022-02-01 | AV6: =Timing!AV6 -> 2022-03-01 | AW6: =Timing!AW6 -> 2022-04-01 | AX6: =Timing!AX6 -> 2022-05-01 | AY6: =Timing!AY6 -> 2022-06-01 | AZ6: =Timing!AZ6 -> 2022-07-01 | BA6: =Timing!BA6 -> 2022-08-01 | BB6: =Timing!BB6 -> 2022-09-01 | BC6: =Timing!BC6 -> 2022-10-01 | BD6: =Timing!BD6 -> 2022-11-01 | BE6: =Timing!BE6 -> 2022-12-01 | BF6: =Timing!BF6 -> 2023-01-01 | BG6: =Timing!BG6 -> 2023-02-01 | BH6: =Timing!BH6 -> 2023-03-01 | BI6: =Timing!BI6 -> 2023-04-01 | BJ6: =Timing!BJ6 -> 2023-05-01 | BK6: =Timing!BK6 -> 2023-06-01 | BL6: =Timing!BL6 -> 2023-07-01 | BM6: =Timing!BM6 -> 2023-08-01 | BN6: =Timing!BN6 -> 2023-09-01 | BO6: =Timing!BO6 -> 2023-10-01 | BP6: =Timing!BP6 -> 2023-11-01 | BQ6: =Timing!BQ6 -> 2023-12-01
C7: =Timing!C7 -> End Date | J7: =Timing!J7 -> 2019-01-31 | K7: =Timing!K7 -> 2019-02-28 | L7: =Timing!L7 -> 2019-03-31 | M7: =Timing!M7 -> 2019-04-30 | N7: =Timing!N7 -> 2019-05-31 | O7: =Timing!O7 -> 2019-06-30 | P7: =Timing!P7 -> 2019-07-31 | Q7: =Timing!Q7 -> 2019-08-31 | R7: =Timing!R7 -> 2019-09-30 | S7: =Timing!S7 -> 2019-10-31 | T7: =Timing!T7 -> 2019-11-30 | U7: =Timing!U7 -> 2019-12-31 | V7: =Timing!V7 -> 2020-01-31 | W7: =Timing!W7 -> 2020-02-29 | X7: =Timing!X7 -> 2020-03-31 | Y7: =Timing!Y7 -> 2020-04-30 | Z7: =Timing!Z7 -> 2020-05-31 | AA7: =Timing!AA7 -> 2020-06-30 | AB7: =Timing!AB7 -> 2020-07-31 | AC7: =Timing!AC7 -> 2020-08-31 | AD7: =Timing!AD7 -> 2020-09-30 | AE7: =Timing!AE7 -> 2020-10-31 | AF7: =Timing!AF7 -> 2020-11-30 | AG7: =Timing!AG7 -> 2020-12-31 | AH7: =Timing!AH7 -> 2021-01-31 | AI7: =Timing!AI7 -> 2021-02-28 | AJ7: =Timing!AJ7 -> 2021-03-31 | AK7: =Timing!AK7 -> 2021-04-30 | AL7: =Timing!AL7 -> 2021-05-31 | AM7: =Timing!AM7 -> 2021-06-30 | AN7: =Timing!AN7 -> 2021-07-31 | AO7: =Timing!AO7 -> 2021-08-31 | AP7: =Timing!AP7 -> 2021-09-30 | AQ7: =Timing!AQ7 -> 2021-10-31 | AR7: =Timing!AR7 -> 2021-11-30 | AS7: =Timing!AS7 -> 2021-12-31 | AT7: =Timing!AT7 -> 2022-01-31 | AU7: =Timing!AU7 -> 2022-02-28 | AV7: =Timing!AV7 -> 2022-03-31 | AW7: =Timing!AW7 -> 2022-04-30 | AX7: =Timing!AX7 -> 2022-05-31 | AY7: =Timing!AY7 -> 2022-06-30 | AZ7: =Timing!AZ7 -> 2022-07-31 | BA7: =Timing!BA7 -> 2022-08-31 | BB7: =Timing!BB7 -> 2022-09-30 | BC7: =Timing!BC7 -> 2022-10-31 | BD7: =Timing!BD7 -> 2022-11-30 | BE7: =Timing!BE7 -> 2022-12-31 | BF7: =Timing!BF7 -> 2023-01-31 | BG7: =Timing!BG7 -> 2023-02-28 | BH7: =Timing!BH7 -> 2023-03-31 | BI7: =Timing!BI7 -> 2023-04-30 | BJ7: =Timing!BJ7 -> 2023-05-31 | BK7: =Timing!BK7 -> 2023-06-30 | BL7: =Timing!BL7 -> 2023-07-31 | BM7: =Timing!BM7 -> 2023-08-31 | BN7: =Timing!BN7 -> 2023-09-30 | BO7: =Timing!BO7 -> 2023-10-31 | BP7: =Timing!BP7 -> 2023-11-30 | BQ7: =Timing!BQ7 -> 2023-12-31
C8: =Timing!C8 -> Number of Days | J8: =Timing!J8 -> 31 | K8: =Timing!K8 -> 28 | L8: =Timing!L8 -> 31 | M8: =Timing!M8 -> 30 | N8: =Timing!N8 -> 31 | O8: =Timing!O8 -> 30 | P8: =Timing!P8 -> 31 | Q8: =Timing!Q8 -> 31 | R8: =Timing!R8 -> 30 | S8: =Timing!S8 -> 31 | T8: =Timing!T8 -> 30 | U8: =Timing!U8 -> 31 | V8: =Timing!V8 -> 31 | W8: =Timing!W8 -> 29 | X8: =Timing!X8 -> 31 | Y8: =Timing!Y8 -> 30 | Z8: =Timing!Z8 -> 31 | AA8: =Timing!AA8 -> 30 | AB8: =Timing!AB8 -> 31 | AC8: =Timing!AC8 -> 31 | AD8: =Timing!AD8 -> 30 | AE8: =Timing!AE8 -> 31 | AF8: =Timing!AF8 -> 30 | AG8: =Timing!AG8 -> 31 | AH8: =Timing!AH8 -> 31 | AI8: =Timing!AI8 -> 28 | AJ8: =Timing!AJ8 -> 31 | AK8: =Timing!AK8 -> 30 | AL8: =Timing!AL8 -> 31 | AM8: =Timing!AM8 -> 30 | AN8: =Timing!AN8 -> 31 | AO8: =Timing!AO8 -> 31 | AP8: =Timing!AP8 -> 30 | AQ8: =Timing!AQ8 -> 31 | AR8: =Timing!AR8 -> 30 | AS8: =Timing!AS8 -> 31 | AT8: =Timing!AT8 -> 31 | AU8: =Timing!AU8 -> 28 | AV8: =Timing!AV8 -> 31 | AW8: =Timing!AW8 -> 30 | AX8: =Timing!AX8 -> 31 | AY8: =Timing!AY8 -> 30 | AZ8: =Timing!AZ8 -> 31 | BA8: =Timing!BA8 -> 31 | BB8: =Timing!BB8 -> 30 | BC8: =Timing!BC8 -> 31 | BD8: =Timing!BD8 -> 30 | BE8: =Timing!BE8 -> 31 | BF8: =Timing!BF8 -> 31 | BG8: =Timing!BG8 -> 28 | BH8: =Timing!BH8 -> 31 | BI8: =Timing!BI8 -> 30 | BJ8: =Timing!BJ8 -> 31 | BK8: =Timing!BK8 -> 30 | BL8: =Timing!BL8 -> 31 | BM8: =Timing!BM8 -> 31 | BN8: =Timing!BN8 -> 30 | BO8: =Timing!BO8 -> 31 | BP8: =Timing!BP8 -> 30 | BQ8: =Timing!BQ8 -> 31
C9: =Timing!C9 -> Counter | I9: None | J9: =Timing!J9 -> 1 | K9: =Timing!K9 -> 2 | L9: =Timing!L9 -> 3 | M9: =Timing!M9 -> 4 | N9: =Timing!N9 -> 5 | O9: =Timing!O9 -> 6 | P9: =Timing!P9 -> 7 | Q9: =Timing!Q9 -> 8 | R9: =Timing!R9 -> 9 | S9: =Timing!S9 -> 10 | T9: =Timing!T9 -> 11 | U9: =Timing!U9 -> 12 | V9: =Timing!V9 -> 13 | W9: =Timing!W9 -> 14 | X9: =Timing!X9 -> 15 | Y9: =Timing!Y9 -> 16 | Z9: =Timing!Z9 -> 17 | AA9: =Timing!AA9 -> 18 | AB9: =Timing!AB9 -> 19 | AC9: =Timing!AC9 -> 20 | AD9: =Timing!AD9 -> 21 | AE9: =Timing!AE9 -> 22 | AF9: =Timing!AF9 -> 23 | AG9: =Timing!AG9 -> 24 | AH9: =Timing!AH9 -> 25 | AI9: =Timing!AI9 -> 26 | AJ9: =Timing!AJ9 -> 27 | AK9: =Timing!AK9 -> 28 | AL9: =Timing!AL9 -> 29 | AM9: =Timing!AM9 -> 30 | AN9: =Timing!AN9 -> 31 | AO9: =Timing!AO9 -> 32 | AP9: =Timing!AP9 -> 33 | AQ9: =Timing!AQ9 -> 34 | AR9: =Timing!AR9 -> 35 | AS9: =Timing!AS9 -> 36 | AT9: =Timing!AT9 -> 37 | AU9: =Timing!AU9 -> 38 | AV9: =Timing!AV9 -> 39 | AW9: =Timing!AW9 -> 40 | AX9: =Timing!AX9 -> 41 | AY9: =Timing!AY9 -> 42 | AZ9: =Timing!AZ9 -> 43 | BA9: =Timing!BA9 -> 44 | BB9: =Timing!BB9 -> 45 | BC9: =Timing!BC9 -> 46 | BD9: =Timing!BD9 -> 47 | BE9: =Timing!BE9 -> 48 | BF9: =Timing!BF9 -> 49 | BG9: =Timing!BG9 -> 50 | BH9: =Timing!BH9 -> 51 | BI9: =Timing!BI9 -> 52 | BJ9: =Timing!BJ9 -> 53 | BK9: =Timing!BK9 -> 54 | BL9: =Timing!BL9 -> 55 | BM9: =Timing!BM9 -> 56 | BN9: =Timing!BN9 -> 57 | BO9: =Timing!BO9 -> 58 | BP9: =Timing!BP9 -> 59 | BQ9: =Timing!BQ9 -> 60
B11: =MAX($B$10:$B10)+1 -> 1 | C11: Timing Assumptions
C13: Periodicity Assumptions
D15: Inputs
F17: # Periods | G17: From | H17: To
E18: Monthly | F18: 12 | G18: =IF(OR($F18="None",$F18=""),"None",1) -> 1 | H18: =IF(OR($F18="None",$F18=""),"None",MIN($F18,MAX(LU_Number_of_Periods))) -> 12 | J18: =IF(AND(J$9>=N($G18),J$9<=N($H18)),J$7,"") -> 2019-01-31 | K18: =IF(AND(K$9>=N($G18),K$9<=N($H18)),K$7,"") -> 2019-02-28 | L18: 2019-03-31 | M18: 2019-04-30 | N18: 2019-05-31 | O18: 2019-06-30 | P18: 2019-07-31 | Q18: 2019-08-31 | R18: 2019-09-30 | S18: 2019-10-31 | T18: 2019-11-30 | U18: 2019-12-31
E19: Quarterly | F19: 4 | G19: =IF(OR($F19="None",$F19="",$H18=MAX(LU_Number_of_Periods)),"None",MAX(H18)+1) -> 13 | H19: =IF(OR($F19="None",$F19="",$H18=MAX(LU_Number_of_Periods)),"None",MIN($F19*Months_in_Quarter+$G19-1,MAX(LU_Number_of_Periods))) -> 24 | J19: =IF(AND(J$9>=N($G19),J$9<=N($H19)),EOMONTH(J$7,Months_in_Quarter-MOD(J$9-MAX($H$18:$H18)-1,Months_in_Quarter)-1),"") ->  | K19: =IF(AND(K$9>=N($G19),K$9<=N($H19)),EOMONTH(K$7,Months_in_Quarter-MOD(K$9-MAX($H$18:$H18)-1,Months_in_Quarter)-1),"") ->  | L19: =IF(AND(L$9>=N($G19),L$9<=N($H19)),EOMONTH(L$7,Months_in_Quarter-MOD(L$9-MAX($H$18:$H18)-1,Months_in_Quarter)-1),"") ->  | M19: =IF(AND(M$9>=N($G19),M$9<=N($H19)),EOMONTH(M$7,Months_in_Quarter-MOD(M$9-MAX($H$18:$H18)-1,Months_in_Quarter)-1),"") ->  | N19: =IF(AND(N$9>=N($G19),N$9<=N($H19)),EOMONTH(N$7,Months_in_Quarter-MOD(N$9-MAX($H$18:$H18)-1,Months_in_Quarter)-1),"") ->  | O19: =IF(AND(O$9>=N($G19),O$9<=N($H19)),EOMONTH(O$7,Months_in_Quarter-MOD(O$9-MAX($H$18:$H18)-1,Months_in_Quarter)-1),"") ->  | P19: =IF(AND(P$9>=N($G19),P$9<=N($H19)),EOMONTH(P$7,Months_in_Quarter-MOD(P$9-MAX($H$18:$H18)-1,Months_in_Quarter)-1),"") ->  | Q19: =IF(AND(Q$9>=N($G19),Q$9<=N($H19)),EOMONTH(Q$7,Months_in_Quarter-MOD(Q$9-MAX($H$18:$H18)-1,Months_in_Quarter)-1),"") ->  | R19: =IF(AND(R$9>=N($G19),R$9<=N($H19)),EOMONTH(R$7,Months_in_Quarter-MOD(R$9-MAX($H$18:$H18)-1,Months_in_Quarter)-1),"") ->  | S19: =IF(AND(S$9>=N($G19),S$9<=N($H19)),EOMONTH(S$7,Months_in_Quarter-MOD(S$9-MAX($H$18:$H18)-1,Months_in_Quarter)-1),"") ->  | T19: =IF(AND(T$9>=N($G19),T$9<=N($H19)),EOMONTH(T$7,Months_in_Quarter-MOD(T$9-MAX($H$18:$H18)-1,Months_in_Quarter)-1),"") ->  | U19: =IF(AND(U$9>=N($G19),U$9<=N($H19)),EOMONTH(U$7,Months_in_Quarter-MOD(U$9-MAX($H$18:$H18)-1,Months_in_Quarter)-1),"") ->  | V19: =IF(AND(V$9>=N($G19),V$9<=N($H19)),EOMONTH(V$7,Months_in_Quarter-MOD(V$9-MAX($H$18:$H18)-1,Months_in_Quarter)-1),"") -> 2020-03-31 | W19: =IF(AND(W$9>=N($G19),W$9<=N($H19)),EOMONTH(W$7,Months_in_Quarter-MOD(W$9-MAX($H$18:$H18)-1,Months_in_Quarter)-1),"") -> 2020-03-31 | X19: =IF(AND(X$9>=N($G19),X$9<=N($H19)),EOMONTH(X$7,Months_in_Quarter-MOD(X$9-MAX($H$18:$H18)-1,Months_in_Quarter)-1),"") -> 2020-03-31 | Y19: =IF(AND(Y$9>=N($G19),Y$9<=N($H19)),EOMONTH(Y$7,Months_in_Quarter-MOD(Y$9-MAX($H$18:$H18)-1,Months_in_Quarter)-1),"") -> 2020-06-30 | Z19: =IF(AND(Z$9>=N($G19),Z$9<=N($H19)),EOMONTH(Z$7,Months_in_Quarter-MOD(Z$9-MAX($H$18:$H18)-1,Months_in_Quarter)-1),"") -> 2020-06-30 | AA19: =IF(AND(AA$9>=N($G19),AA$9<=N($H19)),EOMONTH(AA$7,Months_in_Quarter-MOD(AA$9-MAX($H$18:$H18)-1,Months_in_Quarter)-1),"") -> 2020-06-30 | AB19: =IF(AND(AB$9>=N($G19),AB$9<=N($H19)),EOMONTH(AB$7,Months_in_Quarter-MOD(AB$9-MAX($H$18:$H18)-1,Months_in_Quarter)-1),"") -> 2020-09-30 | AC19: =IF(AND(AC$9>=N($G19),AC$9<=N($H19)),EOMONTH(AC$7,Months_in_Quarter-MOD(AC$9-MAX($H$18:$H18)-1,Months_in_Quarter)-1),"") -> 2020-09-30 | AD19: =IF(AND(AD$9>=N($G19),AD$9<=N($H19)),EOMONTH(AD$7,Months_in_Quarter-MOD(AD$9-MAX($H$18:$H18)-1,Months_in_Quarter)-1),"") -> 2020-09-30 | AE19: =IF(AND(AE$9>=N($G19),AE$9<=N($H19)),EOMONTH(AE$7,Months_in_Quarter-MOD(AE$9-MAX($H$18:$H18)-1,Months_in_Quarter)-1),"") -> 2020-12-31 | AF19: =IF(AND(AF$9>=N($G19),AF$9<=N($H19)),EOMONTH(AF$7,Months_in_Quarter-MOD(AF$9-MAX($H$18:$H18)-1,Months_in_Quarter)-1),"") -> 2020-12-31 | AG19: =IF(AND(AG$9>=N($G19),AG$9<=N($H19)),EOMONTH(AG$7,Months_in_Quarter-MOD(AG$9-MAX($H$18:$H18)-1,Months_in_Quarter)-1),"") -> 2020-12-31 | AH19: =IF(AND(AH$9>=N($G19),AH$9<=N($H19)),EOMONTH(AH$7,Months_in_Quarter-MOD(AH$9-MAX($H$18:$H18)-1,Months_in_Quarter)-1),"") ->  | AI19: =IF(AND(AI$9>=N($G19),AI$9<=N($H19)),EOMONTH(AI$7,Months_in_Quarter-MOD(AI$9-MAX($H$18:$H18)-1,Months_in_Quarter)-1),"") ->  | AJ19: =IF(AND(AJ$9>=N($G19),AJ$9<=N($H19)),EOMONTH(AJ$7,Months_in_Quarter-MOD(AJ$9-MAX($H$18:$H18)-1,Months_in_Quarter)-1),"") ->  | AK19: =IF(AND(AK$9>=N($G19),AK$9<=N($H19)),EOMONTH(AK$7,Months_in_Quarter-MOD(AK$9-MAX($H$18:$H18)-1,Months_in_Quarter)-1),"") ->  | AL19: =IF(AND(AL$9>=N($G19),AL$9<=N($H19)),EOMONTH(AL$7,Months_in_Quarter-MOD(AL$9-MAX($H$18:$H18)-1,Months_in_Quarter)-1),"") ->  | AM19: =IF(AND(AM$9>=N($G19),AM$9<=N($H19)),EOMONTH(AM$7,Months_in_Quarter-MOD(AM$9-MAX($H$18:$H18)-1,Months_in_Quarter)-1),"") ->  | AN19: =IF(AND(AN$9>=N($G19),AN$9<=N($H19)),EOMONTH(AN$7,Months_in_Quarter-MOD(AN$9-MAX($H$18:$H18)-1,Months_in_Quarter)-1),"") ->  | AO19: =IF(AND(AO$9>=N($G19),AO$9<=N($H19)),EOMONTH(AO$7,Months_in_Quarter-MOD(AO$9-MAX($H$18:$H18)-1,Months_in_Quarter)-1),"") ->  | AP19: =IF(AND(AP$9>=N($G19),AP$9<=N($H19)),EOMONTH(AP$7,Months_in_Quarter-MOD(AP$9-MAX($H$18:$H18)-1,Months_in_Quarter)-1),"") ->  | AQ19: =IF(AND(AQ$9>=N($G19),AQ$9<=N($H19)),EOMONTH(AQ$7,Months_in_Quarter-MOD(AQ$9-MAX($H$18:$H18)-1,Months_in_Quarter)-1),"") ->  | AR19: =IF(AND(AR$9>=N($G19),AR$9<=N($H19)),EOMONTH(AR$7,Months_in_Quarter-MOD(AR$9-MAX($H$18:$H18)-1,Months_in_Quarter)-1),"") ->  | AS19: =IF(AND(AS$9>=N($G19),AS$9<=N($H19)),EOMONTH(AS$7,Months_in_Quarter-MOD(AS$9-MAX($H$18:$H18)-1,Months_in_Quarter)-1),"") ->  | AT19: =IF(AND(AT$9>=N($G19),AT$9<=N($H19)),EOMONTH(AT$7,Months_in_Quarter-MOD(AT$9-MAX($H$18:$H18)-1,Months_in_Quarter)-1),"") ->  | AU19: =IF(AND(AU$9>=N($G19),AU$9<=N($H19)),EOMONTH(AU$7,Months_in_Quarter-MOD(AU$9-MAX($H$18:$H18)-1,Months_in_Quarter)-1),"") ->  | AV19: =IF(AND(AV$9>=N($G19),AV$9<=N($H19)),EOMONTH(AV$7,Months_in_Quarter-MOD(AV$9-MAX($H$18:$H18)-1,Months_in_Quarter)-1),"") ->  | AW19: =IF(AND(AW$9>=N($G19),AW$9<=N($H19)),EOMONTH(AW$7,Months_in_Quarter-MOD(AW$9-MAX($H$18:$H18)-1,Months_in_Quarter)-1),"") ->  | AX19: =IF(AND(AX$9>=N($G19),AX$9<=N($H19)),EOMONTH(AX$7,Months_in_Quarter-MOD(AX$9-MAX($H$18:$H18)-1,Months_in_Quarter)-1),"") ->  | AY19: =IF(AND(AY$9>=N($G19),AY$9<=N($H19)),EOMONTH(AY$7,Months_in_Quarter-MOD(AY$9-MAX($H$18:$H18)-1,Months_in_Quarter)-1),"") ->  | AZ19: =IF(AND(AZ$9>=N($G19),AZ$9<=N($H19)),EOMONTH(AZ$7,Months_in_Quarter-MOD(AZ$9-MAX($H$18:$H18)-1,Months_in_Quarter)-1),"") ->  | BA19: =IF(AND(BA$9>=N($G19),BA$9<=N($H19)),EOMONTH(BA$7,Months_in_Quarter-MOD(BA$9-MAX($H$18:$H18)-1,Months_in_Quarter)-1),"") ->  | BB19: =IF(AND(BB$9>=N($G19),BB$9<=N($H19)),EOMONTH(BB$7,Months_in_Quarter-MOD(BB$9-MAX($H$18:$H18)-1,Months_in_Quarter)-1),"") ->  | BC19: =IF(AND(BC$9>=N($G19),BC$9<=N($H19)),EOMONTH(BC$7,Months_in_Quarter-MOD(BC$9-MAX($H$18:$H18)-1,Months_in_Quarter)-1),"") ->  | BD19: =IF(AND(BD$9>=N($G19),BD$9<=N($H19)),EOMONTH(BD$7,Months_in_Quarter-MOD(BD$9-MAX($H$18:$H18)-1,Months_in_Quarter)-1),"") ->  | BE19: =IF(AND(BE$9>=N($G19),BE$9<=N($H19)),EOMONTH(BE$7,Months_in_Quarter-MOD(BE$9-MAX($H$18:$H18)-1,Months_in_Quarter)-1),"") ->  | BF19: =IF(AND(BF$9>=N($G19),BF$9<=N($H19)),EOMONTH(BF$7,Months_in_Quarter-MOD(BF$9-MAX($H$18:$H18)-1,Months_in_Quarter)-1),"") ->  | BG19: =IF(AND(BG$9>=N($G19),BG$9<=N($H19)),EOMONTH(BG$7,Months_in_Quarter-MOD(BG$9-MAX($H$18:$H18)-1,Months_in_Quarter)-1),"") ->  | BH19: =IF(AND(BH$9>=N($G19),BH$9<=N($H19)),EOMONTH(BH$7,Months_in_Quarter-MOD(BH$9-MAX($H$18:$H18)-1,Months_in_Quarter)-1),"") ->  | BI19: =IF(AND(BI$9>=N($G19),BI$9<=N($H19)),EOMONTH(BI$7,Months_in_Quarter-MOD(BI$9-MAX($H$18:$H18)-1,Months_in_Quarter)-1),"") ->  | BJ19: =IF(AND(BJ$9>=N($G19),BJ$9<=N($H19)),EOMONTH(BJ$7,Months_in_Quarter-MOD(BJ$9-MAX($H$18:$H18)-1,Months_in_Quarter)-1),"") ->  | BK19: =IF(AND(BK$9>=N($G19),BK$9<=N($H19)),EOMONTH(BK$7,Months_in_Quarter-MOD(BK$9-MAX($H$18:$H18)-1,Months_in_Quarter)-1),"") ->  | BL19: =IF(AND(BL$9>=N($G19),BL$9<=N($H19)),EOMONTH(BL$7,Months_in_Quarter-MOD(BL$9-MAX($H$18:$H18)-1,Months_in_Quarter)-1),"") ->  | BM19: =IF(AND(BM$9>=N($G19),BM$9<=N($H19)),EOMONTH(BM$7,Months_in_Quarter-MOD(BM$9-MAX($H$18:$H18)-1,Months_in_Quarter)-1),"") ->  | BN19: =IF(AND(BN$9>=N($G19),BN$9<=N($H19)),EOMONTH(BN$7,Months_in_Quarter-MOD(BN$9-MAX($H$18:$H18)-1,Months_in_Quarter)-1),"") ->  | BO19: =IF(AND(BO$9>=N($G19),BO$9<=N($H19)),EOMONTH(BO$7,Months_in_Quarter-MOD(BO$9-MAX($H$18:$H18)-1,Months_in_Quarter)-1),"") ->  | BP19: =IF(AND(BP$9>=N($G19),BP$9<=N($H19)),EOMONTH(BP$7,Months_in_Quarter-MOD(BP$9-MAX($H$18:$H18)-1,Months_in_Quarter)-1),"") ->  | BQ19: =IF(AND(BQ$9>=N($G19),BQ$9<=N($H19)),EOMONTH(BQ$7,Months_in_Quarter-MOD(BQ$9-MAX($H$18:$H18)-1,Months_in_Quarter)-1),"") -> 
E20: Half-Yearly | F20: 2 | G20: =IF(OR($F20="None",$F20="",MAX($H$18:$H19)=MAX(LU_Number_of_Periods)),"None",MAX($H$18:$H19)+1) -> 25 | H20: =IF(OR($F20="None",$F20="",MAX($H$18:$H19)=MAX(LU_Number_of_Periods)),"None",MIN($F20*Months_in_Half_Yr+$G20-1,MAX(LU_Number_of_Periods))) -> 36 | J20: =IF(AND(J$9>=N($G20),J$9<=N($H20)),EOMONTH(J$7,Months_in_Half_Yr-MOD(J$9-MAX($H$18:$H19)-1,Months_in_Half_Yr)-1),"") ->  | K20: =IF(AND(K$9>=N($G20),K$9<=N($H20)),EOMONTH(K$7,Months_in_Half_Yr-MOD(K$9-MAX($H$18:$H19)-1,Months_in_Half_Yr)-1),"") ->  | L20: =IF(AND(L$9>=N($G20),L$9<=N($H20)),EOMONTH(L$7,Months_in_Half_Yr-MOD(L$9-MAX($H$18:$H19)-1,Months_in_Half_Yr)-1),"") ->  | M20: =IF(AND(M$9>=N($G20),M$9<=N($H20)),EOMONTH(M$7,Months_in_Half_Yr-MOD(M$9-MAX($H$18:$H19)-1,Months_in_Half_Yr)-1),"") ->  | N20: =IF(AND(N$9>=N($G20),N$9<=N($H20)),EOMONTH(N$7,Months_in_Half_Yr-MOD(N$9-MAX($H$18:$H19)-1,Months_in_Half_Yr)-1),"") ->  | O20: =IF(AND(O$9>=N($G20),O$9<=N($H20)),EOMONTH(O$7,Months_in_Half_Yr-MOD(O$9-MAX($H$18:$H19)-1,Months_in_Half_Yr)-1),"") ->  | P20: =IF(AND(P$9>=N($G20),P$9<=N($H20)),EOMONTH(P$7,Months_in_Half_Yr-MOD(P$9-MAX($H$18:$H19)-1,Months_in_Half_Yr)-1),"") ->  | Q20: =IF(AND(Q$9>=N($G20),Q$9<=N($H20)),EOMONTH(Q$7,Months_in_Half_Yr-MOD(Q$9-MAX($H$18:$H19)-1,Months_in_Half_Yr)-1),"") ->  | R20: =IF(AND(R$9>=N($G20),R$9<=N($H20)),EOMONTH(R$7,Months_in_Half_Yr-MOD(R$9-MAX($H$18:$H19)-1,Months_in_Half_Yr)-1),"") ->  | S20: =IF(AND(S$9>=N($G20),S$9<=N($H20)),EOMONTH(S$7,Months_in_Half_Yr-MOD(S$9-MAX($H$18:$H19)-1,Months_in_Half_Yr)-1),"") ->  | T20: =IF(AND(T$9>=N($G20),T$9<=N($H20)),EOMONTH(T$7,Months_in_Half_Yr-MOD(T$9-MAX($H$18:$H19)-1,Months_in_Half_Yr)-1),"") ->  | U20: =IF(AND(U$9>=N($G20),U$9<=N($H20)),EOMONTH(U$7,Months_in_Half_Yr-MOD(U$9-MAX($H$18:$H19)-1,Months_in_Half_Yr)-1),"") ->  | V20: =IF(AND(V$9>=N($G20),V$9<=N($H20)),EOMONTH(V$7,Months_in_Half_Yr-MOD(V$9-MAX($H$18:$H19)-1,Months_in_Half_Yr)-1),"") ->  | W20: =IF(AND(W$9>=N($G20),W$9<=N($H20)),EOMONTH(W$7,Months_in_Half_Yr-MOD(W$9-MAX($H$18:$H19)-1,Months_in_Half_Yr)-1),"") ->  | X20: =IF(AND(X$9>=N($G20),X$9<=N($H20)),EOMONTH(X$7,Months_in_Half_Yr-MOD(X$9-MAX($H$18:$H19)-1,Months_in_Half_Yr)-1),"") ->  | Y20: =IF(AND(Y$9>=N($G20),Y$9<=N($H20)),EOMONTH(Y$7,Months_in_Half_Yr-MOD(Y$9-MAX($H$18:$H19)-1,Months_in_Half_Yr)-1),"") ->  | Z20: =IF(AND(Z$9>=N($G20),Z$9<=N($H20)),EOMONTH(Z$7,Months_in_Half_Yr-MOD(Z$9-MAX($H$18:$H19)-1,Months_in_Half_Yr)-1),"") ->  | AA20: =IF(AND(AA$9>=N($G20),AA$9<=N($H20)),EOMONTH(AA$7,Months_in_Half_Yr-MOD(AA$9-MAX($H$18:$H19)-1,Months_in_Half_Yr)-1),"") ->  | AB20: =IF(AND(AB$9>=N($G20),AB$9<=N($H20)),EOMONTH(AB$7,Months_in_Half_Yr-MOD(AB$9-MAX($H$18:$H19)-1,Months_in_Half_Yr)-1),"") ->  | AC20: =IF(AND(AC$9>=N($G20),AC$9<=N($H20)),EOMONTH(AC$7,Months_in_Half_Yr-MOD(AC$9-MAX($H$18:$H19)-1,Months_in_Half_Yr)-1),"") ->  | AD20: =IF(AND(AD$9>=N($G20),AD$9<=N($H20)),EOMONTH(AD$7,Months_in_Half_Yr-MOD(AD$9-MAX($H$18:$H19)-1,Months_in_Half_Yr)-1),"") ->  | AE20: =IF(AND(AE$9>=N($G20),AE$9<=N($H20)),EOMONTH(AE$7,Months_in_Half_Yr-MOD(AE$9-MAX($H$18:$H19)-1,Months_in_Half_Yr)-1),"") ->  | AF20: =IF(AND(AF$9>=N($G20),AF$9<=N($H20)),EOMONTH(AF$7,Months_in_Half_Yr-MOD(AF$9-MAX($H$18:$H19)-1,Months_in_Half_Yr)-1),"") ->  | AG20: =IF(AND(AG$9>=N($G20),AG$9<=N($H20)),EOMONTH(AG$7,Months_in_Half_Yr-MOD(AG$9-MAX($H$18:$H19)-1,Months_in_Half_Yr)-1),"") ->  | AH20: =IF(AND(AH$9>=N($G20),AH$9<=N($H20)),EOMONTH(AH$7,Months_in_Half_Yr-MOD(AH$9-MAX($H$18:$H19)-1,Months_in_Half_Yr)-1),"") -> 2021-06-30 | AI20: =IF(AND(AI$9>=N($G20),AI$9<=N($H20)),EOMONTH(AI$7,Months_in_Half_Yr-MOD(AI$9-MAX($H$18:$H19)-1,Months_in_Half_Yr)-1),"") -> 2021-06-30 | AJ20: =IF(AND(AJ$9>=N($G20),AJ$9<=N($H20)),EOMONTH(AJ$7,Months_in_Half_Yr-MOD(AJ$9-MAX($H$18:$H19)-1,Months_in_Half_Yr)-1),"") -> 2021-06-30 | AK20: =IF(AND(AK$9>=N($G20),AK$9<=N($H20)),EOMONTH(AK$7,Months_in_Half_Yr-MOD(AK$9-MAX($H$18:$H19)-1,Months_in_Half_Yr)-1),"") -> 2021-06-30 | AL20: =IF(AND(AL$9>=N($G20),AL$9<=N($H20)),EOMONTH(AL$7,Months_in_Half_Yr-MOD(AL$9-MAX($H$18:$H19)-1,Months_in_Half_Yr)-1),"") -> 2021-06-30 | AM20: =IF(AND(AM$9>=N($G20),AM$9<=N($H20)),EOMONTH(AM$7,Months_in_Half_Yr-MOD(AM$9-MAX($H$18:$H19)-1,Months_in_Half_Yr)-1),"") -> 2021-06-30 | AN20: =IF(AND(AN$9>=N($G20),AN$9<=N($H20)),EOMONTH(AN$7,Months_in_Half_Yr-MOD(AN$9-MAX($H$18:$H19)-1,Months_in_Half_Yr)-1),"") -> 2021-12-31 | AO20: =IF(AND(AO$9>=N($G20),AO$9<=N($H20)),EOMONTH(AO$7,Months_in_Half_Yr-MOD(AO$9-MAX($H$18:$H19)-1,Months_in_Half_Yr)-1),"") -> 2021-12-31 | AP20: =IF(AND(AP$9>=N($G20),AP$9<=N($H20)),EOMONTH(AP$7,Months_in_Half_Yr-MOD(AP$9-MAX($H$18:$H19)-1,Months_in_Half_Yr)-1),"") -> 2021-12-31 | AQ20: =IF(AND(AQ$9>=N($G20),AQ$9<=N($H20)),EOMONTH(AQ$7,Months_in_Half_Yr-MOD(AQ$9-MAX($H$18:$H19)-1,Months_in_Half_Yr)-1),"") -> 2021-12-31 | AR20: =IF(AND(AR$9>=N($G20),AR$9<=N($H20)),EOMONTH(AR$7,Months_in_Half_Yr-MOD(AR$9-MAX($H$18:$H19)-1,Months_in_Half_Yr)-1),"") -> 2021-12-31 | AS20: =IF(AND(AS$9>=N($G20),AS$9<=N($H20)),EOMONTH(AS$7,Months_in_Half_Yr-MOD(AS$9-MAX($H$18:$H19)-1,Months_in_Half_Yr)-1),"") -> 2021-12-31 | AT20: =IF(AND(AT$9>=N($G20),AT$9<=N($H20)),EOMONTH(AT$7,Months_in_Half_Yr-MOD(AT$9-MAX($H$18:$H19)-1,Months_in_Half_Yr)-1),"") ->  | AU20: =IF(AND(AU$9>=N($G20),AU$9<=N($H20)),EOMONTH(AU$7,Months_in_Half_Yr-MOD(AU$9-MAX($H$18:$H19)-1,Months_in_Half_Yr)-1),"") ->  | AV20: =IF(AND(AV$9>=N($G20),AV$9<=N($H20)),EOMONTH(AV$7,Months_in_Half_Yr-MOD(AV$9-MAX($H$18:$H19)-1,Months_in_Half_Yr)-1),"") ->  | AW20: =IF(AND(AW$9>=N($G20),AW$9<=N($H20)),EOMONTH(AW$7,Months_in_Half_Yr-MOD(AW$9-MAX($H$18:$H19)-1,Months_in_Half_Yr)-1),"") ->  | AX20: =IF(AND(AX$9>=N($G20),AX$9<=N($H20)),EOMONTH(AX$7,Months_in_Half_Yr-MOD(AX$9-MAX($H$18:$H19)-1,Months_in_Half_Yr)-1),"") ->  | AY20: =IF(AND(AY$9>=N($G20),AY$9<=N($H20)),EOMONTH(AY$7,Months_in_Half_Yr-MOD(AY$9-MAX($H$18:$H19)-1,Months_in_Half_Yr)-1),"") ->  | AZ20: =IF(AND(AZ$9>=N($G20),AZ$9<=N($H20)),EOMONTH(AZ$7,Months_in_Half_Yr-MOD(AZ$9-MAX($H$18:$H19)-1,Months_in_Half_Yr)-1),"") ->  | BA20: =IF(AND(BA$9>=N($G20),BA$9<=N($H20)),EOMONTH(BA$7,Months_in_Half_Yr-MOD(BA$9-MAX($H$18:$H19)-1,Months_in_Half_Yr)-1),"") ->  | BB20: =IF(AND(BB$9>=N($G20),BB$9<=N($H20)),EOMONTH(BB$7,Months_in_Half_Yr-MOD(BB$9-MAX($H$18:$H19)-1,Months_in_Half_Yr)-1),"") ->  | BC20: =IF(AND(BC$9>=N($G20),BC$9<=N($H20)),EOMONTH(BC$7,Months_in_Half_Yr-MOD(BC$9-MAX($H$18:$H19)-1,Months_in_Half_Yr)-1),"") ->  | BD20: =IF(AND(BD$9>=N($G20),BD$9<=N($H20)),EOMONTH(BD$7,Months_in_Half_Yr-MOD(BD$9-MAX($H$18:$H19)-1,Months_in_Half_Yr)-1),"") ->  | BE20: =IF(AND(BE$9>=N($G20),BE$9<=N($H20)),EOMONTH(BE$7,Months_in_Half_Yr-MOD(BE$9-MAX($H$18:$H19)-1,Months_in_Half_Yr)-1),"") ->  | BF20: =IF(AND(BF$9>=N($G20),BF$9<=N($H20)),EOMONTH(BF$7,Months_in_Half_Yr-MOD(BF$9-MAX($H$18:$H19)-1,Months_in_Half_Yr)-1),"") ->  | BG20: =IF(AND(BG$9>=N($G20),BG$9<=N($H20)),EOMONTH(BG$7,Months_in_Half_Yr-MOD(BG$9-MAX($H$18:$H19)-1,Months_in_Half_Yr)-1),"") ->  | BH20: =IF(AND(BH$9>=N($G20),BH$9<=N($H20)),EOMONTH(BH$7,Months_in_Half_Yr-MOD(BH$9-MAX($H$18:$H19)-1,Months_in_Half_Yr)-1),"") ->  | BI20: =IF(AND(BI$9>=N($G20),BI$9<=N($H20)),EOMONTH(BI$7,Months_in_Half_Yr-MOD(BI$9-MAX($H$18:$H19)-1,Months_in_Half_Yr)-1),"") ->  | BJ20: =IF(AND(BJ$9>=N($G20),BJ$9<=N($H20)),EOMONTH(BJ$7,Months_in_Half_Yr-MOD(BJ$9-MAX($H$18:$H19)-1,Months_in_Half_Yr)-1),"") ->  | BK20: =IF(AND(BK$9>=N($G20),BK$9<=N($H20)),EOMONTH(BK$7,Months_in_Half_Yr-MOD(BK$9-MAX($H$18:$H19)-1,Months_in_Half_Yr)-1),"") ->  | BL20: =IF(AND(BL$9>=N($G20),BL$9<=N($H20)),EOMONTH(BL$7,Months_in_Half_Yr-MOD(BL$9-MAX($H$18:$H19)-1,Months_in_Half_Yr)-1),"") ->  | BM20: =IF(AND(BM$9>=N($G20),BM$9<=N($H20)),EOMONTH(BM$7,Months_in_Half_Yr-MOD(BM$9-MAX($H$18:$H19)-1,Months_in_Half_Yr)-1),"") ->  | BN20: =IF(AND(BN$9>=N($G20),BN$9<=N($H20)),EOMONTH(BN$7,Months_in_Half_Yr-MOD(BN$9-MAX($H$18:$H19)-1,Months_in_Half_Yr)-1),"") ->  | BO20: =IF(AND(BO$9>=N($G20),BO$9<=N($H20)),EOMONTH(BO$7,Months_in_Half_Yr-MOD(BO$9-MAX($H$18:$H19)-1,Months_in_Half_Yr)-1),"") ->  | BP20: =IF(AND(BP$9>=N($G20),BP$9<=N($H20)),EOMONTH(BP$7,Months_in_Half_Yr-MOD(BP$9-MAX($H$18:$H19)-1,Months_in_Half_Yr)-1),"") ->  | BQ20: =IF(AND(BQ$9>=N($G20),BQ$9<=N($H20)),EOMONTH(BQ$7,Months_in_Half_Yr-MOD(BQ$9-MAX($H$18:$H19)-1,Months_in_Half_Yr)-1),"") -> 
E21: Annually | F21: Remainder | G21: =IF(OR($F21="None",$F21="",MAX($H$18:$H20)=MAX(LU_Number_of_Periods)),"None",MAX($H$18:$H20)+1) -> 37 | H21: =IF(OR($F21="None",$F21="",MAX($H$18:$H20)=MAX(LU_Number_of_Periods)),"None",MAX(LU_Number_of_Periods)) -> 60 | J21: =IF(AND(J$9>=N($G21),J$9<=N($H21)),EOMONTH(J$7,Months_in_Year-MOD(J$9-MAX($H$18:$H20)-1,Months_in_Year)-1),"") ->  | K21: =IF(AND(K$9>=N($G21),K$9<=N($H21)),EOMONTH(K$7,Months_in_Year-MOD(K$9-MAX($H$18:$H20)-1,Months_in_Year)-1),"") ->  | L21: =IF(AND(L$9>=N($G21),L$9<=N($H21)),EOMONTH(L$7,Months_in_Year-MOD(L$9-MAX($H$18:$H20)-1,Months_in_Year)-1),"") ->  | M21: =IF(AND(M$9>=N($G21),M$9<=N($H21)),EOMONTH(M$7,Months_in_Year-MOD(M$9-MAX($H$18:$H20)-1,Months_in_Year)-1),"") ->  | N21: =IF(AND(N$9>=N($G21),N$9<=N($H21)),EOMONTH(N$7,Months_in_Year-MOD(N$9-MAX($H$18:$H20)-1,Months_in_Year)-1),"") ->  | O21: =IF(AND(O$9>=N($G21),O$9<=N($H21)),EOMONTH(O$7,Months_in_Year-MOD(O$9-MAX($H$18:$H20)-1,Months_in_Year)-1),"") ->  | P21: =IF(AND(P$9>=N($G21),P$9<=N($H21)),EOMONTH(P$7,Months_in_Year-MOD(P$9-MAX($H$18:$H20)-1,Months_in_Year)-1),"") ->  | Q21: =IF(AND(Q$9>=N($G21),Q$9<=N($H21)),EOMONTH(Q$7,Months_in_Year-MOD(Q$9-MAX($H$18:$H20)-1,Months_in_Year)-1),"") ->  | R21: =IF(AND(R$9>=N($G21),R$9<=N($H21)),EOMONTH(R$7,Months_in_Year-MOD(R$9-MAX($H$18:$H20)-1,Months_in_Year)-1),"") ->  | S21: =IF(AND(S$9>=N($G21),S$9<=N($H21)),EOMONTH(S$7,Months_in_Year-MOD(S$9-MAX($H$18:$H20)-1,Months_in_Year)-1),"") ->  | T21: =IF(AND(T$9>=N($G21),T$9<=N($H21)),EOMONTH(T$7,Months_in_Year-MOD(T$9-MAX($H$18:$H20)-1,Months_in_Year)-1),"") ->  | U21: =IF(AND(U$9>=N($G21),U$9<=N($H21)),EOMONTH(U$7,Months_in_Year-MOD(U$9-MAX($H$18:$H20)-1,Months_in_Year)-1),"") ->  | V21: =IF(AND(V$9>=N($G21),V$9<=N($H21)),EOMONTH(V$7,Months_in_Year-MOD(V$9-MAX($H$18:$H20)-1,Months_in_Year)-1),"") ->  | W21: =IF(AND(W$9>=N($G21),W$9<=N($H21)),EOMONTH(W$7,Months_in_Year-MOD(W$9-MAX($H$18:$H20)-1,Months_in_Year)-1),"") ->  | X21: =IF(AND(X$9>=N($G21),X$9<=N($H21)),EOMONTH(X$7,Months_in_Year-MOD(X$9-MAX($H$18:$H20)-1,Months_in_Year)-1),"") ->  | Y21: =IF(AND(Y$9>=N($G21),Y$9<=N($H21)),EOMONTH(Y$7,Months_in_Year-MOD(Y$9-MAX($H$18:$H20)-1,Months_in_Year)-1),"") ->  | Z21: =IF(AND(Z$9>=N($G21),Z$9<=N($H21)),EOMONTH(Z$7,Months_in_Year-MOD(Z$9-MAX($H$18:$H20)-1,Months_in_Year)-1),"") ->  | AA21: =IF(AND(AA$9>=N($G21),AA$9<=N($H21)),EOMONTH(AA$7,Months_in_Year-MOD(AA$9-MAX($H$18:$H20)-1,Months_in_Year)-1),"") ->  | AB21: =IF(AND(AB$9>=N($G21),AB$9<=N($H21)),EOMONTH(AB$7,Months_in_Year-MOD(AB$9-MAX($H$18:$H20)-1,Months_in_Year)-1),"") ->  | AC21: =IF(AND(AC$9>=N($G21),AC$9<=N($H21)),EOMONTH(AC$7,Months_in_Year-MOD(AC$9-MAX($H$18:$H20)-1,Months_in_Year)-1),"") ->  | AD21: =IF(AND(AD$9>=N($G21),AD$9<=N($H21)),EOMONTH(AD$7,Months_in_Year-MOD(AD$9-MAX($H$18:$H20)-1,Months_in_Year)-1),"") ->  | AE21: =IF(AND(AE$9>=N($G21),AE$9<=N($H21)),EOMONTH(AE$7,Months_in_Year-MOD(AE$9-MAX($H$18:$H20)-1,Months_in_Year)-1),"") ->  | AF21: =IF(AND(AF$9>=N($G21),AF$9<=N($H21)),EOMONTH(AF$7,Months_in_Year-MOD(AF$9-MAX($H$18:$H20)-1,Months_in_Year)-1),"") ->  | AG21: =IF(AND(AG$9>=N($G21),AG$9<=N($H21)),EOMONTH(AG$7,Months_in_Year-MOD(AG$9-MAX($H$18:$H20)-1,Months_in_Year)-1),"") ->  | AH21: =IF(AND(AH$9>=N($G21),AH$9<=N($H21)),EOMONTH(AH$7,Months_in_Year-MOD(AH$9-MAX($H$18:$H20)-1,Months_in_Year)-1),"") ->  | AI21: =IF(AND(AI$9>=N($G21),AI$9<=N($H21)),EOMONTH(AI$7,Months_in_Year-MOD(AI$9-MAX($H$18:$H20)-1,Months_in_Year)-1),"") ->  | AJ21: =IF(AND(AJ$9>=N($G21),AJ$9<=N($H21)),EOMONTH(AJ$7,Months_in_Year-MOD(AJ$9-MAX($H$18:$H20)-1,Months_in_Year)-1),"") ->  | AK21: =IF(AND(AK$9>=N($G21),AK$9<=N($H21)),EOMONTH(AK$7,Months_in_Year-MOD(AK$9-MAX($H$18:$H20)-1,Months_in_Year)-1),"") ->  | AL21: =IF(AND(AL$9>=N($G21),AL$9<=N($H21)),EOMONTH(AL$7,Months_in_Year-MOD(AL$9-MAX($H$18:$H20)-1,Months_in_Year)-1),"") ->  | AM21: =IF(AND(AM$9>=N($G21),AM$9<=N($H21)),EOMONTH(AM$7,Months_in_Year-MOD(AM$9-MAX($H$18:$H20)-1,Months_in_Year)-1),"") ->  | AN21: =IF(AND(AN$9>=N($G21),AN$9<=N($H21)),EOMONTH(AN$7,Months_in_Year-MOD(AN$9-MAX($H$18:$H20)-1,Months_in_Year)-1),"") ->  | AO21: =IF(AND(AO$9>=N($G21),AO$9<=N($H21)),EOMONTH(AO$7,Months_in_Year-MOD(AO$9-MAX($H$18:$H20)-1,Months_in_Year)-1),"") ->  | AP21: =IF(AND(AP$9>=N($G21),AP$9<=N($H21)),EOMONTH(AP$7,Months_in_Year-MOD(AP$9-MAX($H$18:$H20)-1,Months_in_Year)-1),"") ->  | AQ21: =IF(AND(AQ$9>=N($G21),AQ$9<=N($H21)),EOMONTH(AQ$7,Months_in_Year-MOD(AQ$9-MAX($H$18:$H20)-1,Months_in_Year)-1),"") ->  | AR21: =IF(AND(AR$9>=N($G21),AR$9<=N($H21)),EOMONTH(AR$7,Months_in_Year-MOD(AR$9-MAX($H$18:$H20)-1,Months_in_Year)-1),"") ->  | AS21: =IF(AND(AS$9>=N($G21),AS$9<=N($H21)),EOMONTH(AS$7,Months_in_Year-MOD(AS$9-MAX($H$18:$H20)-1,Months_in_Year)-1),"") ->  | AT21: =IF(AND(AT$9>=N($G21),AT$9<=N($H21)),EOMONTH(AT$7,Months_in_Year-MOD(AT$9-MAX($H$18:$H20)-1,Months_in_Year)-1),"") -> 2022-12-31 | AU21: =IF(AND(AU$9>=N($G21),AU$9<=N($H21)),EOMONTH(AU$7,Months_in_Year-MOD(AU$9-MAX($H$18:$H20)-1,Months_in_Year)-1),"") -> 2022-12-31 | AV21: =IF(AND(AV$9>=N($G21),AV$9<=N($H21)),EOMONTH(AV$7,Months_in_Year-MOD(AV$9-MAX($H$18:$H20)-1,Months_in_Year)-1),"") -> 2022-12-31 | AW21: =IF(AND(AW$9>=N($G21),AW$9<=N($H21)),EOMONTH(AW$7,Months_in_Year-MOD(AW$9-MAX($H$18:$H20)-1,Months_in_Year)-1),"") -> 2022-12-31 | AX21: =IF(AND(AX$9>=N($G21),AX$9<=N($H21)),EOMONTH(AX$7,Months_in_Year-MOD(AX$9-MAX($H$18:$H20)-1,Months_in_Year)-1),"") -> 2022-12-31 | AY21: =IF(AND(AY$9>=N($G21),AY$9<=N($H21)),EOMONTH(AY$7,Months_in_Year-MOD(AY$9-MAX($H$18:$H20)-1,Months_in_Year)-1),"") -> 2022-12-31 | AZ21: =IF(AND(AZ$9>=N($G21),AZ$9<=N($H21)),EOMONTH(AZ$7,Months_in_Year-MOD(AZ$9-MAX($H$18:$H20)-1,Months_in_Year)-1),"") -> 2022-12-31 | BA21: =IF(AND(BA$9>=N($G21),BA$9<=N($H21)),EOMONTH(BA$7,Months_in_Year-MOD(BA$9-MAX($H$18:$H20)-1,Months_in_Year)-1),"") -> 2022-12-31 | BB21: =IF(AND(BB$9>=N($G21),BB$9<=N($H21)),EOMONTH(BB$7,Months_in_Year-MOD(BB$9-MAX($H$18:$H20)-1,Months_in_Year)-1),"") -> 2022-12-31 | BC21: =IF(AND(BC$9>=N($G21),BC$9<=N($H21)),EOMONTH(BC$7,Months_in_Year-MOD(BC$9-MAX($H$18:$H20)-1,Months_in_Year)-1),"") -> 2022-12-31 | BD21: =IF(AND(BD$9>=N($G21),BD$9<=N($H21)),EOMONTH(BD$7,Months_in_Year-MOD(BD$9-MAX($H$18:$H20)-1,Months_in_Year)-1),"") -> 2022-12-31 | BE21: =IF(AND(BE$9>=N($G21),BE$9<=N($H21)),EOMONTH(BE$7,Months_in_Year-MOD(BE$9-MAX($H$18:$H20)-1,Months_in_Year)-1),"") -> 2022-12-31 | BF21: =IF(AND(BF$9>=N($G21),BF$9<=N($H21)),EOMONTH(BF$7,Months_in_Year-MOD(BF$9-MAX($H$18:$H20)-1,Months_in_Year)-1),"") -> 2023-12-31 | BG21: =IF(AND(BG$9>=N($G21),BG$9<=N($H21)),EOMONTH(BG$7,Months_in_Year-MOD(BG$9-MAX($H$18:$H20)-1,Months_in_Year)-1),"") -> 2023-12-31 | BH21: =IF(AND(BH$9>=N($G21),BH$9<=N($H21)),EOMONTH(BH$7,Months_in_Year-MOD(BH$9-MAX($H$18:$H20)-1,Months_in_Year)-1),"") -> 2023-12-31 | BI21: =IF(AND(BI$9>=N($G21),BI$9<=N($H21)),EOMONTH(BI$7,Months_in_Year-MOD(BI$9-MAX($H$18:$H20)-1,Months_in_Year)-1),"") -> 2023-12-31 | BJ21: =IF(AND(BJ$9>=N($G21),BJ$9<=N($H21)),EOMONTH(BJ$7,Months_in_Year-MOD(BJ$9-MAX($H$18:$H20)-1,Months_in_Year)-1),"") -> 2023-12-31 | BK21: =IF(AND(BK$9>=N($G21),BK$9<=N($H21)),EOMONTH(BK$7,Months_in_Year-MOD(BK$9-MAX($H$18:$H20)-1,Months_in_Year)-1),"") -> 2023-12-31 | BL21: =IF(AND(BL$9>=N($G21),BL$9<=N($H21)),EOMONTH(BL$7,Months_in_Year-MOD(BL$9-MAX($H$18:$H20)-1,Months_in_Year)-1),"") -> 2023-12-31 | BM21: =IF(AND(BM$9>=N($G21),BM$9<=N($H21)),EOMONTH(BM$7,Months_in_Year-MOD(BM$9-MAX($H$18:$H20)-1,Months_in_Year)-1),"") -> 2023-12-31 | BN21: =IF(AND(BN$9>=N($G21),BN$9<=N($H21)),EOMONTH(BN$7,Months_in_Year-MOD(BN$9-MAX($H$18:$H20)-1,Months_in_Year)-1),"") -> 2023-12-31 | BO21: =IF(AND(BO$9>=N($G21),BO$9<=N($H21)),EOMONTH(BO$7,Months_in_Year-MOD(BO$9-MAX($H$18:$H20)-1,Months_in_Year)-1),"") -> 2023-12-31 | BP21: =IF(AND(BP$9>=N($G21),BP$9<=N($H21)),EOMONTH(BP$7,Months_in_Year-MOD(BP$9-MAX($H$18:$H20)-1,Months_in_Year)-1),"") -> 2023-12-31 | BQ21: =IF(AND(BQ$9>=N($G21),BQ$9<=N($H21)),EOMONTH(BQ$7,Months_in_Year-MOD(BQ$9-MAX($H$18:$H20)-1,Months_in_Year)-1),"") -> 2023-12-31
E23: Periodicity | J23: =INDEX($E$18:$E$21,MATCH(TRUE,INDEX(J$18:J$21<>"",),0)) -> Monthly | K23: =INDEX($E$18:$E$21,MATCH(TRUE,INDEX(K$18:K$21<>"",),0)) -> Monthly | L23: Monthly | M23: Monthly | N23: Monthly | O23: Monthly | P23: Monthly | Q23: Monthly | R23: Monthly | S23: Monthly | T23: Monthly | U23: Monthly | V23: Quarterly | W23: Quarterly | X23: Quarterly | Y23: Quarterly | Z23: Quarterly | AA23: Quarterly | AB23: Quarterly | AC23: Quarterly | AD23: Quarterly | AE23: Quarterly | AF23: Quarterly | AG23: Quarterly | AH23: Half-Yearly | AI23: Half-Yearly | AJ23: Half-Yearly | AK23: Half-Yearly | AL23: Half-Yearly | AM23: Half-Yearly | AN23: Half-Yearly | AO23: Half-Yearly | AP23: Half-Yearly | AQ23: Half-Yearly | AR23: Half-Yearly | AS23: Half-Yearly | AT23: Annually | AU23: Annually | AV23: Annually | AW23: Annually | AX23: Annually | AY23: Annually | AZ23: Annually | BA23: Annually | BB23: Annually | BC23: Annually | BD23: Annually | BE23: Annually | BF23: Annually | BG23: Annually | BH23: Annually | BI23: Annually | BJ23: Annually | BK23: Annually | BL23: Annually | BM23: Annually | BN23: Annually | BO23: Annually | BP23: Annually | BQ23: Annually
E24: Reporting Month | J24: =MAX(J$18:J$21) -> 2019-01-31 | K24: =MAX(K$18:K$21) -> 2019-02-28 | L24: 2019-03-31 | M24: 2019-04-30 | N24: 2019-05-31 | O24: 2019-06-30 | P24: 2019-07-31 | Q24: 2019-08-31 | R24: 2019-09-30 | S24: 2019-10-31 | T24: 2019-11-30 | U24: 2019-12-31 | V24: 2020-03-31 | W24: 2020-03-31 | X24: 2020-03-31 | Y24: 2020-06-30 | Z24: 2020-06-30 | AA24: 2020-06-30 | AB24: 2020-09-30 | AC24: 2020-09-30 | AD24: 2020-09-30 | AE24: 2020-12-31 | AF24: 2020-12-31 | AG24: 2020-12-31 | AH24: 2021-06-30 | AI24: 2021-06-30 | AJ24: 2021-06-30 | AK24: 2021-06-30 | AL24: 2021-06-30 | AM24: 2021-06-30 | AN24: 2021-12-31 | AO24: 2021-12-31 | AP24: 2021-12-31 | AQ24: 2021-12-31 | AR24: 2021-12-31 | AS24: 2021-12-31 | AT24: 2022-12-31 | AU24: 2022-12-31 | AV24: 2022-12-31 | AW24: 2022-12-31 | AX24: 2022-12-31 | AY24: 2022-12-31 | AZ24: 2022-12-31 | BA24: 2022-12-31 | BB24: 2022-12-31 | BC24: 2022-12-31 | BD24: 2022-12-31 | BE24: 2022-12-31 | BF24: 2023-12-31 | BG24: 2023-12-31 | BH24: 2023-12-31 | BI24: 2023-12-31 | BJ24: 2023-12-31 | BK24: 2023-12-31 | BL24: 2023-12-31 | BM24: 2023-12-31 | BN24: 2023-12-31 | BO24: 2023-12-31 | BP24: 2023-12-31 | BQ24: 2023-12-31
E25: Reporting Period Number | J25: =I25+(COUNTIF($I$24:I$24,J$24)=0)*1 -> 1 | K25: =J25+(COUNTIF($I$24:J$24,K$24)=0)*1 -> 2 | L25: =K25+(COUNTIF($I$24:K$24,L$24)=0)*1 -> 3 | M25: =L25+(COUNTIF($I$24:L$24,M$24)=0)*1 -> 4 | N25: =M25+(COUNTIF($I$24:M$24,N$24)=0)*1 -> 5 | O25: =N25+(COUNTIF($I$24:N$24,O$24)=0)*1 -> 6 | P25: =O25+(COUNTIF($I$24:O$24,P$24)=0)*1 -> 7 | Q25: =P25+(COUNTIF($I$24:P$24,Q$24)=0)*1 -> 8 | R25: =Q25+(COUNTIF($I$24:Q$24,R$24)=0)*1 -> 9 | S25: =R25+(COUNTIF($I$24:R$24,S$24)=0)*1 -> 10 | T25: =S25+(COUNTIF($I$24:S$24,T$24)=0)*1 -> 11 | U25: =T25+(COUNTIF($I$24:T$24,U$24)=0)*1 -> 12 | V25: =U25+(COUNTIF($I$24:U$24,V$24)=0)*1 -> 13 | W25: =V25+(COUNTIF($I$24:V$24,W$24)=0)*1 -> 13 | X25: =W25+(COUNTIF($I$24:W$24,X$24)=0)*1 -> 13 | Y25: =X25+(COUNTIF($I$24:X$24,Y$24)=0)*1 -> 14 | Z25: =Y25+(COUNTIF($I$24:Y$24,Z$24)=0)*1 -> 14 | AA25: =Z25+(COUNTIF($I$24:Z$24,AA$24)=0)*1 -> 14 | AB25: =AA25+(COUNTIF($I$24:AA$24,AB$24)=0)*1 -> 15 | AC25: =AB25+(COUNTIF($I$24:AB$24,AC$24)=0)*1 -> 15 | AD25: =AC25+(COUNTIF($I$24:AC$24,AD$24)=0)*1 -> 15 | AE25: =AD25+(COUNTIF($I$24:AD$24,AE$24)=0)*1 -> 16 | AF25: =AE25+(COUNTIF($I$24:AE$24,AF$24)=0)*1 -> 16 | AG25: =AF25+(COUNTIF($I$24:AF$24,AG$24)=0)*1 -> 16 | AH25: =AG25+(COUNTIF($I$24:AG$24,AH$24)=0)*1 -> 17 | AI25: =AH25+(COUNTIF($I$24:AH$24,AI$24)=0)*1 -> 17 | AJ25: =AI25+(COUNTIF($I$24:AI$24,AJ$24)=0)*1 -> 17 | AK25: =AJ25+(COUNTIF($I$24:AJ$24,AK$24)=0)*1 -> 17 | AL25: =AK25+(COUNTIF($I$24:AK$24,AL$24)=0)*1 -> 17 | AM25: =AL25+(COUNTIF($I$24:AL$24,AM$24)=0)*1 -> 17 | AN25: =AM25+(COUNTIF($I$24:AM$24,AN$24)=0)*1 -> 18 | AO25: =AN25+(COUNTIF($I$24:AN$24,AO$24)=0)*1 -> 18 | AP25: =AO25+(COUNTIF($I$24:AO$24,AP$24)=0)*1 -> 18 | AQ25: =AP25+(COUNTIF($I$24:AP$24,AQ$24)=0)*1 -> 18 | AR25: =AQ25+(COUNTIF($I$24:AQ$24,AR$24)=0)*1 -> 18 | AS25: =AR25+(COUNTIF($I$24:AR$24,AS$24)=0)*1 -> 18 | AT25: =AS25+(COUNTIF($I$24:AS$24,AT$24)=0)*1 -> 19 | AU25: =AT25+(COUNTIF($I$24:AT$24,AU$24)=0)*1 -> 19 | AV25: =AU25+(COUNTIF($I$24:AU$24,AV$24)=0)*1 -> 19 | AW25: =AV25+(COUNTIF($I$24:AV$24,AW$24)=0)*1 -> 19 | AX25: =AW25+(COUNTIF($I$24:AW$24,AX$24)=0)*1 -> 19 | AY25: =AX25+(COUNTIF($I$24:AX$24,AY$24)=0)*1 -> 19 | AZ25: =AY25+(COUNTIF($I$24:AY$24,AZ$24)=0)*1 -> 19 | BA25: =AZ25+(COUNTIF($I$24:AZ$24,BA$24)=0)*1 -> 19 | BB25: =BA25+(COUNTIF($I$24:BA$24,BB$24)=0)*1 -> 19 | BC25: =BB25+(COUNTIF($I$24:BB$24,BC$24)=0)*1 -> 19 | BD25: =BC25+(COUNTIF($I$24:BC$24,BD$24)=0)*1 -> 19 | BE25: =BD25+(COUNTIF($I$24:BD$24,BE$24)=0)*1 -> 19 | BF25: =BE25+(COUNTIF($I$24:BE$24,BF$24)=0)*1 -> 20 | BG25: =BF25+(COUNTIF($I$24:BF$24,BG$24)=0)*1 -> 20 | BH25: =BG25+(COUNTIF($I$24:BG$24,BH$24)=0)*1 -> 20 | BI25: =BH25+(COUNTIF($I$24:BH$24,BI$24)=0)*1 -> 20 | BJ25: =BI25+(COUNTIF($I$24:BI$24,BJ$24)=0)*1 -> 20 | BK25: =BJ25+(COUNTIF($I$24:BJ$24,BK$24)=0)*1 -> 20 | BL25: =BK25+(COUNTIF($I$24:BK$24,BL$24)=0)*1 -> 20 | BM25: =BL25+(COUNTIF($I$24:BL$24,BM$24)=0)*1 -> 20 | BN25: =BM25+(COUNTIF($I$24:BM$24,BN$24)=0)*1 -> 20 | BO25: =BN25+(COUNTIF($I$24:BN$24,BO$24)=0)*1 -> 20 | BP25: =BO25+(COUNTIF($I$24:BO$24,BP$24)=0)*1 -> 20 | BQ25: =BP25+(COUNTIF($I$24:BP$24,BQ$24)=0)*1 -> 20
E26: Number of Months in Full Period | J26: =CHOOSE(MATCH(J23,$E$18:$E$21,0),Months_in_Month,Months_in_Quarter,Months_in_Half_Yr,Months_in_Year) -> 1 | K26: 1 | L26: 1 | M26: 1 | N26: 1 | O26: 1 | P26: 1 | Q26: 1 | R26: 1 | S26: 1 | T26: 1 | U26: 1 | V26: 3 | W26: 3 | X26: 3 | Y26: 3 | Z26: 3 | AA26: 3 | AB26: 3 | AC26: 3 | AD26: 3 | AE26: 3 | AF26: 3 | AG26: 3 | AH26: 6 | AI26: 6 | AJ26: 6 | AK26: 6 | AL26: 6 | AM26: 6 | AN26: 6 | AO26: 6 | AP26: =CHOOSE(MATCH(AP23,$E$18:$E$21,0),Months_in_Month,Months_in_Quarter,Months_in_Half_Yr,Months_in_Year) -> 6 | AQ26: 6 | AR26: 6 | AS26: 6 | AT26: 12 | AU26: 12 | AV26: 12 | AW26: 12 | AX26: 12 | AY26: 12 | AZ26: 12 | BA26: 12 | BB26: 12 | BC26: 12 | BD26: 12 | BE26: 12 | BF26: 12 | BG26: 12 | BH26: 12 | BI26: 12 | BJ26: 12 | BK26: 12 | BL26: 12 | BM26: 12 | BN26: 12 | BO26: 12 | BP26: 12 | BQ26: 12
E27: Number of Months in Reporting Period | J27: =COUNTIF(LU_Reporting_Period_No,J25) -> 1 | K27: =COUNTIF(LU_Reporting_Period_No,K25) -> 1 | L27: =COUNTIF(LU_Reporting_Period_No,L25) -> 1 | M27: =COUNTIF(LU_Reporting_Period_No,M25) -> 1 | N27: =COUNTIF(LU_Reporting_Period_No,N25) -> 1 | O27: =COUNTIF(LU_Reporting_Period_No,O25) -> 1 | P27: =COUNTIF(LU_Reporting_Period_No,P25) -> 1 | Q27: =COUNTIF(LU_Reporting_Period_No,Q25) -> 1 | R27: =COUNTIF(LU_Reporting_Period_No,R25) -> 1 | S27: =COUNTIF(LU_Reporting_Period_No,S25) -> 1 | T27: =COUNTIF(LU_Reporting_Period_No,T25) -> 1 | U27: =COUNTIF(LU_Reporting_Period_No,U25) -> 1 | V27: =COUNTIF(LU_Reporting_Period_No,V25) -> 3 | W27: =COUNTIF(LU_Reporting_Period_No,W25) -> 3 | X27: =COUNTIF(LU_Reporting_Period_No,X25) -> 3 | Y27: =COUNTIF(LU_Reporting_Period_No,Y25) -> 3 | Z27: =COUNTIF(LU_Reporting_Period_No,Z25) -> 3 | AA27: =COUNTIF(LU_Reporting_Period_No,AA25) -> 3 | AB27: =COUNTIF(LU_Reporting_Period_No,AB25) -> 3 | AC27: =COUNTIF(LU_Reporting_Period_No,AC25) -> 3 | AD27: =COUNTIF(LU_Reporting_Period_No,AD25) -> 3 | AE27: =COUNTIF(LU_Reporting_Period_No,AE25) -> 3 | AF27: =COUNTIF(LU_Reporting_Period_No,AF25) -> 3 | AG27: =COUNTIF(LU_Reporting_Period_No,AG25) -> 3 | AH27: =COUNTIF(LU_Reporting_Period_No,AH25) -> 6 | AI27: =COUNTIF(LU_Reporting_Period_No,AI25) -> 6 | AJ27: =COUNTIF(LU_Reporting_Period_No,AJ25) -> 6 | AK27: =COUNTIF(LU_Reporting_Period_No,AK25) -> 6 | AL27: =COUNTIF(LU_Reporting_Period_No,AL25) -> 6 | AM27: =COUNTIF(LU_Reporting_Period_No,AM25) -> 6 | AN27: =COUNTIF(LU_Reporting_Period_No,AN25) -> 6 | AO27: =COUNTIF(LU_Reporting_Period_No,AO25) -> 6 | AP27: =COUNTIF(LU_Reporting_Period_No,AP25) -> 6 | AQ27: =COUNTIF(LU_Reporting_Period_No,AQ25) -> 6 | AR27: =COUNTIF(LU_Reporting_Period_No,AR25) -> 6 | AS27: =COUNTIF(LU_Reporting_Period_No,AS25) -> 6 | AT27: =COUNTIF(LU_Reporting_Period_No,AT25) -> 12 | AU27: =COUNTIF(LU_Reporting_Period_No,AU25) -> 12 | AV27: =COUNTIF(LU_Reporting_Period_No,AV25) -> 12 | AW27: =COUNTIF(LU_Reporting_Period_No,AW25) -> 12 | AX27: =COUNTIF(LU_Reporting_Period_No,AX25) -> 12 | AY27: =COUNTIF(LU_Reporting_Period_No,AY25) -> 12 | AZ27: =COUNTIF(LU_Reporting_Period_No,AZ25) -> 12 | BA27: =COUNTIF(LU_Reporting_Period_No,BA25) -> 12 | BB27: =COUNTIF(LU_Reporting_Period_No,BB25) -> 12 | BC27: =COUNTIF(LU_Reporting_Period_No,BC25) -> 12 | BD27: =COUNTIF(LU_Reporting_Period_No,BD25) -> 12 | BE27: =COUNTIF(LU_Reporting_Period_No,BE25) -> 12 | BF27: =COUNTIF(LU_Reporting_Period_No,BF25) -> 12 | BG27: =COUNTIF(LU_Reporting_Period_No,BG25) -> 12 | BH27: =COUNTIF(LU_Reporting_Period_No,BH25) -> 12 | BI27: =COUNTIF(LU_Reporting_Period_No,BI25) -> 12 | BJ27: =COUNTIF(LU_Reporting_Period_No,BJ25) -> 12 | BK27: =COUNTIF(LU_Reporting_Period_No,BK25) -> 12 | BL27: =COUNTIF(LU_Reporting_Period_No,BL25) -> 12 | BM27: =COUNTIF(LU_Reporting_Period_No,BM25) -> 12 | BN27: =COUNTIF(LU_Reporting_Period_No,BN25) -> 12 | BO27: =COUNTIF(LU_Reporting_Period_No,BO25) -> 12 | BP27: =COUNTIF(LU_Reporting_Period_No,BP25) -> 12 | BQ27: =COUNTIF(LU_Reporting_Period_No,BQ25) -> 12
E28: Scale-up Factor | J28: =J27/J26 -> 1 | K28: =K27/K26 -> 1 | L28: 1 | M28: 1 | N28: 1 | O28: 1 | P28: 1 | Q28: 1 | R28: 1 | S28: 1 | T28: 1 | U28: 1 | V28: 1 | W28: 1 | X28: 1 | Y28: 1 | Z28: 1 | AA28: 1 | AB28: 1 | AC28: 1 | AD28: 1 | AE28: 1 | AF28: 1 | AG28: 1 | AH28: 1 | AI28: 1 | AJ28: 1 | AK28: 1 | AL28: 1 | AM28: 1 | AN28: 1 | AO28: 1 | AP28: 1 | AQ28: 1 | AR28: 1 | AS28: 1 | AT28: 1 | AU28: 1 | AV28: 1 | AW28: 1 | AX28: 1 | AY28: 1 | AZ28: 1 | BA28: 1 | BB28: 1 | BC28: 1 | BD28: 1 | BE28: 1 | BF28: 1 | BG28: 1 | BH28: 1 | BI28: 1 | BJ28: 1 | BK28: 1 | BL28: 1 | BM28: 1 | BN28: 1 | BO28: 1 | BP28: 1 | BQ28: 1
E30: Number of Reporting Periods Required | I30: =MAX(LU_Reporting_Period_No) -> 20
B33: =MAX($B$10:$B32)+1 -> 2 | C33: Monthly Data
C35: Example Monthly Outputs
D37: =C33 -> Monthly Data
E39: Net Assets | G39: $'000 | J39: 195 | K39: 358 | L39: 466 | M39: 575 | N39: 728 | O39: 900 | P39: 1000 | Q39: 1171 | R39: 1276 | S39: 1420 | T39: 1554 | U39: 1727 | V39: 1882 | W39: 2022 | X39: 2138 | Y39: 2262 | Z39: 2413 | AA39: 2585 | AB39: 2721 | AC39: 2850 | AD39: 3026 | AE39: 3143 | AF39: 3244 | AG39: 3378 | AH39: 3563 | AI39: 3705 | AJ39: 3891 | AK39: 4039 | AL39: 4194 | AM39: 4361 | AN39: 4482 | AO39: 4644 | AP39: 4746 | AQ39: 4874 | AR39: 5007 | AS39: 5160 | AT39: 5260 | AU39: 5416 | AV39: 5566 | AW39: 5666 | AX39: 5785 | AY39: 5886 | AZ39: 6068 | BA39: 6187 | BB39: 6321 | BC39: 6460 | BD39: 6627 | BE39: 6789 | BF39: 6891 | BG39: 7040 | BH39: 7175 | BI39: 7323 | BJ39: 7439 | BK39: 7608 | BL39: 7718 | BM39: 7911 | BN39: 8058 | BO39: 8254 | BP39: 8411 | BQ39: 8582
E41: Revenue | G41: $'000 | J41: 343 | K41: 234 | L41: 114 | M41: 212 | N41: 377 | O41: 147 | P41: 151 | Q41: 290 | R41: 328 | S41: 327 | T41: 270 | U41: 196 | V41: 281 | W41: 290 | X41: 282 | Y41: 391 | Z41: 244 | AA41: 142 | AB41: 154 | AC41: 120 | AD41: 176 | AE41: 297 | AF41: 238 | AG41: 105 | AH41: 143 | AI41: 233 | AJ41: 386 | AK41: 283 | AL41: 235 | AM41: 322 | AN41: 231 | AO41: 256 | AP41: 195 | AQ41: 179 | AR41: 177 | AS41: 382 | AT41: 400 | AU41: 203 | AV41: 142 | AW41: 326 | AX41: 374 | AY41: 218 | AZ41: 154 | BA41: 389 | BB41: 280 | BC41: 269 | BD41: 209 | BE41: 267 | BF41: 109 | BG41: 301 | BH41: 224 | BI41: 112 | BJ41: 198 | BK41: 264 | BL41: 396 | BM41: 248 | BN41: 200 | BO41: 142 | BP41: 336 | BQ41: 331
E42: COGS | G42: $'000 | J42: -135 | K42: -243 | L42: -156 | M42: -181 | N42: -117 | O42: -140 | P42: -199 | Q42: -181 | R42: -230 | S42: -119 | T42: -184 | U42: -114 | V42: -148 | W42: -177 | X42: -132 | Y42: -184 | Z42: -140 | AA42: -221 | AB42: -159 | AC42: -124 | AD42: -224 | AE42: -228 | AF42: -155 | AG42: -151 | AH42: -133 | AI42: -193 | AJ42: -225 | AK42: -128 | AL42: -135 | AM42: -217 | AN42: -149 | AO42: -247 | AP42: -195 | AQ42: -152 | AR42: -137 | AS42: -192 | AT42: -123 | AU42: -175 | AV42: -155 | AW42: -188 | AX42: -109 | AY42: -225 | AZ42: -240 | BA42: -212 | BB42: -203 | BC42: -173 | BD42: -196 | BE42: -196 | BF42: -213 | BG42: -109 | BH42: -164 | BI42: -118 | BJ42: -203 | BK42: -154 | BL42: -195 | BM42: -200 | BN42: -200 | BO42: -245 | BP42: -171 | BQ42: -221
E44: Gross Profit | G44: $'000 | J44: =SUM(J41:J42) -> 208 | K44: =SUM(K41:K42) -> -9 | L44: -42 | M44: 31 | N44: 260 | O44: 7 | P44: -48 | Q44: 109 | R44: 98 | S44: 208 | T44: 86 | U44: 82 | V44: 133 | W44: 113 | X44: 150 | Y44: 207 | Z44: 104 | AA44: -79 | AB44: -5 | AC44: -4 | AD44: -48 | AE44: 69 | AF44: 83 | AG44: -46 | AH44: 10 | AI44: 40 | AJ44: 161 | AK44: 155 | AL44: 100 | AM44: 105 | AN44: 82 | AO44: 9 | AP44: 0 | AQ44: 27 | AR44: 40 | AS44: 190 | AT44: 277 | AU44: 28 | AV44: -13 | AW44: 138 | AX44: 265 | AY44: -7 | AZ44: -86 | BA44: 177 | BB44: 77 | BC44: 96 | BD44: 13 | BE44: 71 | BF44: -104 | BG44: 192 | BH44: 60 | BI44: -6 | BJ44: -5 | BK44: 110 | BL44: 201 | BM44: 48 | BN44: 0 | BO44: -103 | BP44: 165 | BQ44: 110
E46: Gross Margin | G46: % | J46: =IF(J41,J44/J41,"") -> 0.6064139942 | K46: -0.03846153846 | L46: -0.3684210526 | M46: 0.1462264151 | N46: 0.6896551724 | O46: 0.04761904762 | P46: -0.3178807947 | Q46: 0.375862069 | R46: 0.2987804878 | S46: 0.6360856269 | T46: 0.3185185185 | U46: 0.4183673469 | V46: 0.4733096085 | W46: 0.3896551724 | X46: 0.5319148936 | Y46: 0.5294117647 | Z46: 0.4262295082 | AA46: -0.5563380282 | AB46: -0.03246753247 | AC46: -0.03333333333 | AD46: -0.2727272727 | AE46: 0.2323232323 | AF46: 0.3487394958 | AG46: -0.4380952381 | AH46: 0.06993006993 | AI46: 0.1716738197 | AJ46: 0.4170984456 | AK46: 0.5477031802 | AL46: 0.4255319149 | AM46: 0.3260869565 | AN46: 0.354978355 | AO46: 0.03515625 | AP46: =IF(AP41,AP44/AP41,"") -> 0 | AQ46: 0.1508379888 | AR46: 0.2259887006 | AS46: 0.497382199 | AT46: 0.6925 | AU46: 0.1379310345 | AV46: -0.09154929577 | AW46: 0.4233128834 | AX46: 0.7085561497 | AY46: -0.03211009174 | AZ46: -0.5584415584 | BA46: 0.4550128535 | BB46: 0.275 | BC46: 0.3568773234 | BD46: 0.06220095694 | BE46: 0.265917603 | BF46: -0.9541284404 | BG46: 0.6378737542 | BH46: 0.2678571429 | BI46: -0.05357142857 | BJ46: -0.02525252525 | BK46: 0.4166666667 | BL46: 0.5075757576 | BM46: 0.1935483871 | BN46: 0 | BO46: -0.7253521127 | BP46: 0.4910714286 | BQ46: 0.332326284

Sheet Outputs
A1: =IF(ISERROR(RIGHT(CELL("filename",A1),LEN(CELL("filename",A1))-FIND("]",CELL("filename",A1)))), "", RIGHT(CELL("filename",A1),LEN(CELL("filename",A1))-FIND("]",CELL("filename",A1)))) -> Outputs
A2: =Model_Name -> SP Aggregating Time Periods.xlsm
A3: Navigator
B4: Error Checks: | F4: =Overall_Error_Check -> 0
J5: =IF(J$7="","",J$7) -> 2019-01-31 | K5: =IF(K$7="","",K$7) -> 2019-02-28 | L5: 2019-03-31 | M5: 2019-04-30 | N5: 2019-05-31 | O5: 2019-06-30 | P5: 2019-07-31 | Q5: 2019-08-31 | R5: 2019-09-30 | S5: 2019-10-31 | T5: 2019-11-30 | U5: 2019-12-31 | V5: 2020-03-31 | W5: 2020-06-30 | X5: 2020-09-30 | Y5: 2020-12-31 | Z5: 2021-06-30 | AA5: 2021-12-31 | AB5: 2022-12-31 | AC5: 2023-12-31
C6: =Timing!C6 -> Start Date | J6: =IF(J$11="","",IF(J$11=1,Model_Start_Date,I$7+1)) -> 2019-01-01 | K6: 2019-02-01 | L6: 2019-03-01 | M6: 2019-04-01 | N6: 2019-05-01 | O6: 2019-06-01 | P6: 2019-07-01 | Q6: 2019-08-01 | R6: 2019-09-01 | S6: 2019-10-01 | T6: 2019-11-01 | U6: 2019-12-01 | V6: 2020-01-01 | W6: 2020-04-01 | X6: 2020-07-01 | Y6: 2020-10-01 | Z6: 2021-01-01 | AA6: 2021-07-01 | AB6: 2022-01-01 | AC6: 2023-01-01 | AP6: =IF(AP$11="","",IF(AP$11=1,Model_Start_Date,AO$7+1)) -> 
C7: =Timing!C7 -> End Date | J7: =IF(J$11="","",LOOKUP(J$11,LU_Reporting_Period_No,LU_Reporting_Month)) -> 2019-01-31 | K7: 2019-02-28 | L7: 2019-03-31 | M7: 2019-04-30 | N7: 2019-05-31 | O7: 2019-06-30 | P7: 2019-07-31 | Q7: 2019-08-31 | R7: 2019-09-30 | S7: 2019-10-31 | T7: 2019-11-30 | U7: 2019-12-31 | V7: 2020-03-31 | W7: 2020-06-30 | X7: 2020-09-30 | Y7: 2020-12-31 | Z7: 2021-06-30 | AA7: 2021-12-31 | AB7: 2022-12-31 | AC7: 2023-12-31 | AP7: =IF(AP$11="","",LOOKUP(AP$11,LU_Reporting_Period_No,LU_Reporting_Month)) -> 
C8: =Timing!C8 -> Number of Days | J8: =IF(J$11="","",J$7-J$6+1) -> 31 | K8: =IF(K$11="","",K$7-K$6+1) -> 28 | L8: 31 | M8: 30 | N8: 31 | O8: 30 | P8: 31 | Q8: 31 | R8: 30 | S8: 31 | T8: 30 | U8: 31 | V8: 91 | W8: 91 | X8: 92 | Y8: 92 | Z8: 181 | AA8: 184 | AB8: 365 | AC8: 365
C9: =Assumptions!E28 -> Scale-up Factor | J9: =IF(J$11="","",LOOKUP(J$11,LU_Reporting_Period_No,LU_Scale_Up_Factor)) -> 1 | K9: 1 | L9: 1 | M9: 1 | N9: 1 | O9: 1 | P9: 1 | Q9: 1 | R9: 1 | S9: 1 | T9: 1 | U9: 1 | V9: 1 | W9: 1 | X9: 1 | Y9: 1 | Z9: 1 | AA9: 1 | AB9: 1 | AC9: 1 | AP9: =IF(AP$11="","",LOOKUP(AP$11,LU_Reporting_Period_No,LU_Scale_Up_Factor)) -> 
C10: Periodicity | J10: =IF(J$11="","",SUBSTITUTE(LOOKUP(J$11,LU_Reporting_Period_No,LU_Periodicity),"ly","")) -> Month | K10: Month | L10: Month | M10: Month | N10: Month | O10: Month | P10: Month | Q10: Month | R10: Month | S10: Month | T10: Month | U10: Month | V10: Quarter | W10: Quarter | X10: Quarter | Y10: Quarter | Z10: Half-Year | AA10: Half-Year | AB10: Annual | AC10: Annual | AP10: =IF(AP$11="","",SUBSTITUTE(LOOKUP(AP$11,LU_Reporting_Period_No,LU_Periodicity),"ly","")) -> 
C11: =Timing!C9 -> Counter | I11: None | J11: =IF(Assumptions!J$9>Max_No_of_Reporting_Periods,"",Assumptions!J$9) -> 1 | K11: =IF(Assumptions!K$9>Max_No_of_Reporting_Periods,"",Assumptions!K$9) -> 2 | L11: =IF(Assumptions!L$9>Max_No_of_Reporting_Periods,"",Assumptions!L$9) -> 3 | M11: =IF(Assumptions!M$9>Max_No_of_Reporting_Periods,"",Assumptions!M$9) -> 4 | N11: =IF(Assumptions!N$9>Max_No_of_Reporting_Periods,"",Assumptions!N$9) -> 5 | O11: =IF(Assumptions!O$9>Max_No_of_Reporting_Periods,"",Assumptions!O$9) -> 6 | P11: =IF(Assumptions!P$9>Max_No_of_Reporting_Periods,"",Assumptions!P$9) -> 7 | Q11: =IF(Assumptions!Q$9>Max_No_of_Reporting_Periods,"",Assumptions!Q$9) -> 8 | R11: =IF(Assumptions!R$9>Max_No_of_Reporting_Periods,"",Assumptions!R$9) -> 9 | S11: =IF(Assumptions!S$9>Max_No_of_Reporting_Periods,"",Assumptions!S$9) -> 10 | T11: =IF(Assumptions!T$9>Max_No_of_Reporting_Periods,"",Assumptions!T$9) -> 11 | U11: =IF(Assumptions!U$9>Max_No_of_Reporting_Periods,"",Assumptions!U$9) -> 12 | V11: =IF(Assumptions!V$9>Max_No_of_Reporting_Periods,"",Assumptions!V$9) -> 13 | W11: =IF(Assumptions!W$9>Max_No_of_Reporting_Periods,"",Assumptions!W$9) -> 14 | X11: =IF(Assumptions!X$9>Max_No_of_Reporting_Periods,"",Assumptions!X$9) -> 15 | Y11: =IF(Assumptions!Y$9>Max_No_of_Reporting_Periods,"",Assumptions!Y$9) -> 16 | Z11: =IF(Assumptions!Z$9>Max_No_of_Reporting_Periods,"",Assumptions!Z$9) -> 17 | AA11: =IF(Assumptions!AA$9>Max_No_of_Reporting_Periods,"",Assumptions!AA$9) -> 18 | AB11: =IF(Assumptions!AB$9>Max_No_of_Reporting_Periods,"",Assumptions!AB$9) -> 19 | AC11: =IF(Assumptions!AC$9>Max_No_of_Reporting_Periods,"",Assumptions!AC$9) -> 20 | AD11: =IF(Assumptions!AD$9>Max_No_of_Reporting_Periods,"",Assumptions!AD$9) ->  | AE11: =IF(Assumptions!AE$9>Max_No_of_Reporting_Periods,"",Assumptions!AE$9) ->  | AF11: =IF(Assumptions!AF$9>Max_No_of_Reporting_Periods,"",Assumptions!AF$9) ->  | AG11: =IF(Assumptions!AG$9>Max_No_of_Reporting_Periods,"",Assumptions!AG$9) ->  | AH11: =IF(Assumptions!AH$9>Max_No_of_Reporting_Periods,"",Assumptions!AH$9) ->  | AI11: =IF(Assumptions!AI$9>Max_No_of_Reporting_Periods,"",Assumptions!AI$9) ->  | AJ11: =IF(Assumptions!AJ$9>Max_No_of_Reporting_Periods,"",Assumptions!AJ$9) ->  | AK11: =IF(Assumptions!AK$9>Max_No_of_Reporting_Periods,"",Assumptions!AK$9) ->  | AL11: =IF(Assumptions!AL$9>Max_No_of_Reporting_Periods,"",Assumptions!AL$9) ->  | AM11: =IF(Assumptions!AM$9>Max_No_of_Reporting_Periods,"",Assumptions!AM$9) ->  | AN11: =IF(Assumptions!AN$9>Max_No_of_Reporting_Periods,"",Assumptions!AN$9) ->  | AO11: =IF(Assumptions!AO$9>Max_No_of_Reporting_Periods,"",Assumptions!AO$9) ->  | AP11: =IF(Assumptions!AP$9>Max_No_of_Reporting_Periods,"",Assumptions!AP$9) ->  | AQ11: =IF(Assumptions!AQ$9>Max_No_of_Reporting_Periods,"",Assumptions!AQ$9) ->  | AR11: =IF(Assumptions!AR$9>Max_No_of_Reporting_Periods,"",Assumptions!AR$9) ->  | AS11: =IF(Assumptions!AS$9>Max_No_of_Reporting_Periods,"",Assumptions!AS$9) ->  | AT11: =IF(Assumptions!AT$9>Max_No_of_Reporting_Periods,"",Assumptions!AT$9) ->  | AU11: =IF(Assumptions!AU$9>Max_No_of_Reporting_Periods,"",Assumptions!AU$9) ->  | AV11: =IF(Assumptions!AV$9>Max_No_of_Reporting_Periods,"",Assumptions!AV$9) ->  | AW11: =IF(Assumptions!AW$9>Max_No_of_Reporting_Periods,"",Assumptions!AW$9) ->  | AX11: =IF(Assumptions!AX$9>Max_No_of_Reporting_Periods,"",Assumptions!AX$9) ->  | AY11: =IF(Assumptions!AY$9>Max_No_of_Reporting_Periods,"",Assumptions!AY$9) ->  | AZ11: =IF(Assumptions!AZ$9>Max_No_of_Reporting_Periods,"",Assumptions!AZ$9) ->  | BA11: =IF(Assumptions!BA$9>Max_No_of_Reporting_Periods,"",Assumptions!BA$9) ->  | BB11: =IF(Assumptions!BB$9>Max_No_of_Reporting_Periods,"",Assumptions!BB$9) ->  | BC11: =IF(Assumptions!BC$9>Max_No_of_Reporting_Periods,"",Assumptions!BC$9) ->  | BD11: =IF(Assumptions!BD$9>Max_No_of_Reporting_Periods,"",Assumptions!BD$9) ->  | BE11: =IF(Assumptions!BE$9>Max_No_of_Reporting_Periods,"",Assumptions!BE$9) ->  | BF11: =IF(Assumptions!BF$9>Max_No_of_Reporting_Periods,"",Assumptions!BF$9) ->  | BG11: =IF(Assumptions!BG$9>Max_No_of_Reporting_Periods,"",Assumptions!BG$9) ->  | BH11: =IF(Assumptions!BH$9>Max_No_of_Reporting_Periods,"",Assumptions!BH$9) ->  | BI11: =IF(Assumptions!BI$9>Max_No_of_Reporting_Periods,"",Assumptions!BI$9) ->  | BJ11: =IF(Assumptions!BJ$9>Max_No_of_Reporting_Periods,"",Assumptions!BJ$9) ->  | BK11: =IF(Assumptions!BK$9>Max_No_of_Reporting_Periods,"",Assumptions!BK$9) ->  | BL11: =IF(Assumptions!BL$9>Max_No_of_Reporting_Periods,"",Assumptions!BL$9) ->  | BM11: =IF(Assumptions!BM$9>Max_No_of_Reporting_Periods,"",Assumptions!BM$9) ->  | BN11: =IF(Assumptions!BN$9>Max_No_of_Reporting_Periods,"",Assumptions!BN$9) ->  | BO11: =IF(Assumptions!BO$9>Max_No_of_Reporting_Periods,"",Assumptions!BO$9) ->  | BP11: =IF(Assumptions!BP$9>Max_No_of_Reporting_Periods,"",Assumptions!BP$9) ->  | BQ11: =IF(Assumptions!BQ$9>Max_No_of_Reporting_Periods,"",Assumptions!BQ$9) -> 
B13: =MAX($B$12:$B12)+1 -> 1 | C13: Example Outputs
C15: Example Aggregation
D17: Summary
E19: Scale Up Factor | G19: [1,0] | H19: Off
D22: ="Summarised "&Assumptions!D37 -> Summarised Monthly Data
E24: =Assumptions!E39 -> Net Assets | G24: =Assumptions!G39 -> $'000 | J24: =IF(J$11="","",LOOKUP(J$11,LU_Reporting_Period_No,Assumptions!$J39:$BQ39)/IF(Scale_Up_Factor_Switch=On,J$9,1)) -> 195 | K24: =IF(K$11="","",LOOKUP(K$11,LU_Reporting_Period_No,Assumptions!$J39:$BQ39)/IF(Scale_Up_Factor_Switch=On,K$9,1)) -> 358 | L24: =IF(L$11="","",LOOKUP(L$11,LU_Reporting_Period_No,Assumptions!$J39:$BQ39)/IF(Scale_Up_Factor_Switch=On,L$9,1)) -> 466 | M24: =IF(M$11="","",LOOKUP(M$11,LU_Reporting_Period_No,Assumptions!$J39:$BQ39)/IF(Scale_Up_Factor_Switch=On,M$9,1)) -> 575 | N24: =IF(N$11="","",LOOKUP(N$11,LU_Reporting_Period_No,Assumptions!$J39:$BQ39)/IF(Scale_Up_Factor_Switch=On,N$9,1)) -> 728 | O24: =IF(O$11="","",LOOKUP(O$11,LU_Reporting_Period_No,Assumptions!$J39:$BQ39)/IF(Scale_Up_Factor_Switch=On,O$9,1)) -> 900 | P24: =IF(P$11="","",LOOKUP(P$11,LU_Reporting_Period_No,Assumptions!$J39:$BQ39)/IF(Scale_Up_Factor_Switch=On,P$9,1)) -> 1000 | Q24: =IF(Q$11="","",LOOKUP(Q$11,LU_Reporting_Period_No,Assumptions!$J39:$BQ39)/IF(Scale_Up_Factor_Switch=On,Q$9,1)) -> 1171 | R24: =IF(R$11="","",LOOKUP(R$11,LU_Reporting_Period_No,Assumptions!$J39:$BQ39)/IF(Scale_Up_Factor_Switch=On,R$9,1)) -> 1276 | S24: =IF(S$11="","",LOOKUP(S$11,LU_Reporting_Period_No,Assumptions!$J39:$BQ39)/IF(Scale_Up_Factor_Switch=On,S$9,1)) -> 1420 | T24: =IF(T$11="","",LOOKUP(T$11,LU_Reporting_Period_No,Assumptions!$J39:$BQ39)/IF(Scale_Up_Factor_Switch=On,T$9,1)) -> 1554 | U24: =IF(U$11="","",LOOKUP(U$11,LU_Reporting_Period_No,Assumptions!$J39:$BQ39)/IF(Scale_Up_Factor_Switch=On,U$9,1)) -> 1727 | V24: =IF(V$11="","",LOOKUP(V$11,LU_Reporting_Period_No,Assumptions!$J39:$BQ39)/IF(Scale_Up_Factor_Switch=On,V$9,1)) -> 2138 | W24: =IF(W$11="","",LOOKUP(W$11,LU_Reporting_Period_No,Assumptions!$J39:$BQ39)/IF(Scale_Up_Factor_Switch=On,W$9,1)) -> 2585 | X24: =IF(X$11="","",LOOKUP(X$11,LU_Reporting_Period_No,Assumptions!$J39:$BQ39)/IF(Scale_Up_Factor_Switch=On,X$9,1)) -> 3026 | Y24: =IF(Y$11="","",LOOKUP(Y$11,LU_Reporting_Period_No,Assumptions!$J39:$BQ39)/IF(Scale_Up_Factor_Switch=On,Y$9,1)) -> 3378 | Z24: =IF(Z$11="","",LOOKUP(Z$11,LU_Reporting_Period_No,Assumptions!$J39:$BQ39)/IF(Scale_Up_Factor_Switch=On,Z$9,1)) -> 4361 | AA24: =IF(AA$11="","",LOOKUP(AA$11,LU_Reporting_Period_No,Assumptions!$J39:$BQ39)/IF(Scale_Up_Factor_Switch=On,AA$9,1)) -> 5160 | AB24: =IF(AB$11="","",LOOKUP(AB$11,LU_Reporting_Period_No,Assumptions!$J39:$BQ39)/IF(Scale_Up_Factor_Switch=On,AB$9,1)) -> 6789 | AC24: =IF(AC$11="","",LOOKUP(AC$11,LU_Reporting_Period_No,Assumptions!$J39:$BQ39)/IF(Scale_Up_Factor_Switch=On,AC$9,1)) -> 8582 | AD24: =IF(AD$11="","",LOOKUP(AD$11,LU_Reporting_Period_No,Assumptions!$J39:$BQ39)/IF(Scale_Up_Factor_Switch=On,AD$9,1)) ->  | AE24: =IF(AE$11="","",LOOKUP(AE$11,LU_Reporting_Period_No,Assumptions!$J39:$BQ39)/IF(Scale_Up_Factor_Switch=On,AE$9,1)) ->  | AF24: =IF(AF$11="","",LOOKUP(AF$11,LU_Reporting_Period_No,Assumptions!$J39:$BQ39)/IF(Scale_Up_Factor_Switch=On,AF$9,1)) ->  | AG24: =IF(AG$11="","",LOOKUP(AG$11,LU_Reporting_Period_No,Assumptions!$J39:$BQ39)/IF(Scale_Up_Factor_Switch=On,AG$9,1)) ->  | AH24: =IF(AH$11="","",LOOKUP(AH$11,LU_Reporting_Period_No,Assumptions!$J39:$BQ39)/IF(Scale_Up_Factor_Switch=On,AH$9,1)) ->  | AI24: =IF(AI$11="","",LOOKUP(AI$11,LU_Reporting_Period_No,Assumptions!$J39:$BQ39)/IF(Scale_Up_Factor_Switch=On,AI$9,1)) ->  | AJ24: =IF(AJ$11="","",LOOKUP(AJ$11,LU_Reporting_Period_No,Assumptions!$J39:$BQ39)/IF(Scale_Up_Factor_Switch=On,AJ$9,1)) ->  | AK24: =IF(AK$11="","",LOOKUP(AK$11,LU_Reporting_Period_No,Assumptions!$J39:$BQ39)/IF(Scale_Up_Factor_Switch=On,AK$9,1)) ->  | AL24: =IF(AL$11="","",LOOKUP(AL$11,LU_Reporting_Period_No,Assumptions!$J39:$BQ39)/IF(Scale_Up_Factor_Switch=On,AL$9,1)) ->  | AM24: =IF(AM$11="","",LOOKUP(AM$11,LU_Reporting_Period_No,Assumptions!$J39:$BQ39)/IF(Scale_Up_Factor_Switch=On,AM$9,1)) ->  | AN24: =IF(AN$11="","",LOOKUP(AN$11,LU_Reporting_Period_No,Assumptions!$J39:$BQ39)/IF(Scale_Up_Factor_Switch=On,AN$9,1)) ->  | AO24: =IF(AO$11="","",LOOKUP(AO$11,LU_Reporting_Period_No,Assumptions!$J39:$BQ39)/IF(Scale_Up_Factor_Switch=On,AO$9,1)) ->  | AP24: =IF(AP$11="","",LOOKUP(AP$11,LU_Reporting_Period_No,Assumptions!$J39:$BQ39)/IF(Scale_Up_Factor_Switch=On,AP$9,1)) ->  | AQ24: =IF(AQ$11="","",LOOKUP(AQ$11,LU_Reporting_Period_No,Assumptions!$J39:$BQ39)/IF(Scale_Up_Factor_Switch=On,AQ$9,1)) ->  | AR24: =IF(AR$11="","",LOOKUP(AR$11,LU_Reporting_Period_No,Assumptions!$J39:$BQ39)/IF(Scale_Up_Factor_Switch=On,AR$9,1)) ->  | AS24: =IF(AS$11="","",LOOKUP(AS$11,LU_Reporting_Period_No,Assumptions!$J39:$BQ39)/IF(Scale_Up_Factor_Switch=On,AS$9,1)) ->  | AT24: =IF(AT$11="","",LOOKUP(AT$11,LU_Reporting_Period_No,Assumptions!$J39:$BQ39)/IF(Scale_Up_Factor_Switch=On,AT$9,1)) ->  | AU24: =IF(AU$11="","",LOOKUP(AU$11,LU_Reporting_Period_No,Assumptions!$J39:$BQ39)/IF(Scale_Up_Factor_Switch=On,AU$9,1)) ->  | AV24: =IF(AV$11="","",LOOKUP(AV$11,LU_Reporting_Period_No,Assumptions!$J39:$BQ39)/IF(Scale_Up_Factor_Switch=On,AV$9,1)) ->  | AW24: =IF(AW$11="","",LOOKUP(AW$11,LU_Reporting_Period_No,Assumptions!$J39:$BQ39)/IF(Scale_Up_Factor_Switch=On,AW$9,1)) ->  | AX24: =IF(AX$11="","",LOOKUP(AX$11,LU_Reporting_Period_No,Assumptions!$J39:$BQ39)/IF(Scale_Up_Factor_Switch=On,AX$9,1)) ->  | AY24: =IF(AY$11="","",LOOKUP(AY$11,LU_Reporting_Period_No,Assumptions!$J39:$BQ39)/IF(Scale_Up_Factor_Switch=On,AY$9,1)) ->  | AZ24: =IF(AZ$11="","",LOOKUP(AZ$11,LU_Reporting_Period_No,Assumptions!$J39:$BQ39)/IF(Scale_Up_Factor_Switch=On,AZ$9,1)) ->  | BA24: =IF(BA$11="","",LOOKUP(BA$11,LU_Reporting_Period_No,Assumptions!$J39:$BQ39)/IF(Scale_Up_Factor_Switch=On,BA$9,1)) ->  | BB24: =IF(BB$11="","",LOOKUP(BB$11,LU_Reporting_Period_No,Assumptions!$J39:$BQ39)/IF(Scale_Up_Factor_Switch=On,BB$9,1)) ->  | BC24: =IF(BC$11="","",LOOKUP(BC$11,LU_Reporting_Period_No,Assumptions!$J39:$BQ39)/IF(Scale_Up_Factor_Switch=On,BC$9,1)) ->  | BD24: =IF(BD$11="","",LOOKUP(BD$11,LU_Reporting_Period_No,Assumptions!$J39:$BQ39)/IF(Scale_Up_Factor_Switch=On,BD$9,1)) ->  | BE24: =IF(BE$11="","",LOOKUP(BE$11,LU_Reporting_Period_No,Assumptions!$J39:$BQ39)/IF(Scale_Up_Factor_Switch=On,BE$9,1)) ->  | BF24: =IF(BF$11="","",LOOKUP(BF$11,LU_Reporting_Period_No,Assumptions!$J39:$BQ39)/IF(Scale_Up_Factor_Switch=On,BF$9,1)) ->  | BG24: =IF(BG$11="","",LOOKUP(BG$11,LU_Reporting_Period_No,Assumptions!$J39:$BQ39)/IF(Scale_Up_Factor_Switch=On,BG$9,1)) ->  | BH24: =IF(BH$11="","",LOOKUP(BH$11,LU_Reporting_Period_No,Assumptions!$J39:$BQ39)/IF(Scale_Up_Factor_Switch=On,BH$9,1)) ->  | BI24: =IF(BI$11="","",LOOKUP(BI$11,LU_Reporting_Period_No,Assumptions!$J39:$BQ39)/IF(Scale_Up_Factor_Switch=On,BI$9,1)) ->  | BJ24: =IF(BJ$11="","",LOOKUP(BJ$11,LU_Reporting_Period_No,Assumptions!$J39:$BQ39)/IF(Scale_Up_Factor_Switch=On,BJ$9,1)) ->  | BK24: =IF(BK$11="","",LOOKUP(BK$11,LU_Reporting_Period_No,Assumptions!$J39:$BQ39)/IF(Scale_Up_Factor_Switch=On,BK$9,1)) ->  | BL24: =IF(BL$11="","",LOOKUP(BL$11,LU_Reporting_Period_No,Assumptions!$J39:$BQ39)/IF(Scale_Up_Factor_Switch=On,BL$9,1)) ->  | BM24: =IF(BM$11="","",LOOKUP(BM$11,LU_Reporting_Period_No,Assumptions!$J39:$BQ39)/IF(Scale_Up_Factor_Switch=On,BM$9,1)) ->  | BN24: =IF(BN$11="","",LOOKUP(BN$11,LU_Reporting_Period_No,Assumptions!$J39:$BQ39)/IF(Scale_Up_Factor_Switch=On,BN$9,1)) ->  | BO24: =IF(BO$11="","",LOOKUP(BO$11,LU_Reporting_Period_No,Assumptions!$J39:$BQ39)/IF(Scale_Up_Factor_Switch=On,BO$9,1)) ->  | BP24: =IF(BP$11="","",LOOKUP(BP$11,LU_Reporting_Period_No,Assumptions!$J39:$BQ39)/IF(Scale_Up_Factor_Switch=On,BP$9,1)) ->  | BQ24: =IF(BQ$11="","",LOOKUP(BQ$11,LU_Reporting_Period_No,Assumptions!$J39:$BQ39)/IF(Scale_Up_Factor_Switch=On,BQ$9,1)) -> 
E26: =Assumptions!E41 -> Revenue | G26: =Assumptions!G41 -> $'000 | J26: =IF(J$11="","",SUMIF(LU_Reporting_Period_No,J$11,Assumptions!$J41:$BQ41)/IF(Scale_Up_Factor_Switch=On,J$9,1)) -> 343 | K26: =IF(K$11="","",SUMIF(LU_Reporting_Period_No,K$11,Assumptions!$J41:$BQ41)/IF(Scale_Up_Factor_Switch=On,K$9,1)) -> 234 | L26: =IF(L$11="","",SUMIF(LU_Reporting_Period_No,L$11,Assumptions!$J41:$BQ41)/IF(Scale_Up_Factor_Switch=On,L$9,1)) -> 114 | M26: =IF(M$11="","",SUMIF(LU_Reporting_Period_No,M$11,Assumptions!$J41:$BQ41)/IF(Scale_Up_Factor_Switch=On,M$9,1)) -> 212 | N26: =IF(N$11="","",SUMIF(LU_Reporting_Period_No,N$11,Assumptions!$J41:$BQ41)/IF(Scale_Up_Factor_Switch=On,N$9,1)) -> 377 | O26: =IF(O$11="","",SUMIF(LU_Reporting_Period_No,O$11,Assumptions!$J41:$BQ41)/IF(Scale_Up_Factor_Switch=On,O$9,1)) -> 147 | P26: =IF(P$11="","",SUMIF(LU_Reporting_Period_No,P$11,Assumptions!$J41:$BQ41)/IF(Scale_Up_Factor_Switch=On,P$9,1)) -> 151 | Q26: =IF(Q$11="","",SUMIF(LU_Reporting_Period_No,Q$11,Assumptions!$J41:$BQ41)/IF(Scale_Up_Factor_Switch=On,Q$9,1)) -> 290 | R26: =IF(R$11="","",SUMIF(LU_Reporting_Period_No,R$11,Assumptions!$J41:$BQ41)/IF(Scale_Up_Factor_Switch=On,R$9,1)) -> 328 | S26: =IF(S$11="","",SUMIF(LU_Reporting_Period_No,S$11,Assumptions!$J41:$BQ41)/IF(Scale_Up_Factor_Switch=On,S$9,1)) -> 327 | T26: =IF(T$11="","",SUMIF(LU_Reporting_Period_No,T$11,Assumptions!$J41:$BQ41)/IF(Scale_Up_Factor_Switch=On,T$9,1)) -> 270 | U26: =IF(U$11="","",SUMIF(LU_Reporting_Period_No,U$11,Assumptions!$J41:$BQ41)/IF(Scale_Up_Factor_Switch=On,U$9,1)) -> 196 | V26: =IF(V$11="","",SUMIF(LU_Reporting_Period_No,V$11,Assumptions!$J41:$BQ41)/IF(Scale_Up_Factor_Switch=On,V$9,1)) -> 853 | W26: =IF(W$11="","",SUMIF(LU_Reporting_Period_No,W$11,Assumptions!$J41:$BQ41)/IF(Scale_Up_Factor_Switch=On,W$9,1)) -> 777 | X26: =IF(X$11="","",SUMIF(LU_Reporting_Period_No,X$11,Assumptions!$J41:$BQ41)/IF(Scale_Up_Factor_Switch=On,X$9,1)) -> 450 | Y26: =IF(Y$11="","",SUMIF(LU_Reporting_Period_No,Y$11,Assumptions!$J41:$BQ41)/IF(Scale_Up_Factor_Switch=On,Y$9,1)) -> 640 | Z26: =IF(Z$11="","",SUMIF(LU_Reporting_Period_No,Z$11,Assumptions!$J41:$BQ41)/IF(Scale_Up_Factor_Switch=On,Z$9,1)) -> 1602 | AA26: =IF(AA$11="","",SUMIF(LU_Reporting_Period_No,AA$11,Assumptions!$J41:$BQ41)/IF(Scale_Up_Factor_Switch=On,AA$9,1)) -> 1420 | AB26: =IF(AB$11="","",SUMIF(LU_Reporting_Period_No,AB$11,Assumptions!$J41:$BQ41)/IF(Scale_Up_Factor_Switch=On,AB$9,1)) -> 3231 | AC26: =IF(AC$11="","",SUMIF(LU_Reporting_Period_No,AC$11,Assumptions!$J41:$BQ41)/IF(Scale_Up_Factor_Switch=On,AC$9,1)) -> 2861 | AD26: =IF(AD$11="","",SUMIF(LU_Reporting_Period_No,AD$11,Assumptions!$J41:$BQ41)/IF(Scale_Up_Factor_Switch=On,AD$9,1)) ->  | AE26: =IF(AE$11="","",SUMIF(LU_Reporting_Period_No,AE$11,Assumptions!$J41:$BQ41)/IF(Scale_Up_Factor_Switch=On,AE$9,1)) ->  | AF26: =IF(AF$11="","",SUMIF(LU_Reporting_Period_No,AF$11,Assumptions!$J41:$BQ41)/IF(Scale_Up_Factor_Switch=On,AF$9,1)) ->  | AG26: =IF(AG$11="","",SUMIF(LU_Reporting_Period_No,AG$11,Assumptions!$J41:$BQ41)/IF(Scale_Up_Factor_Switch=On,AG$9,1)) ->  | AH26: =IF(AH$11="","",SUMIF(LU_Reporting_Period_No,AH$11,Assumptions!$J41:$BQ41)/IF(Scale_Up_Factor_Switch=On,AH$9,1)) ->  | AI26: =IF(AI$11="","",SUMIF(LU_Reporting_Period_No,AI$11,Assumptions!$J41:$BQ41)/IF(Scale_Up_Factor_Switch=On,AI$9,1)) ->  | AJ26: =IF(AJ$11="","",SUMIF(LU_Reporting_Period_No,AJ$11,Assumptions!$J41:$BQ41)/IF(Scale_Up_Factor_Switch=On,AJ$9,1)) ->  | AK26: =IF(AK$11="","",SUMIF(LU_Reporting_Period_No,AK$11,Assumptions!$J41:$BQ41)/IF(Scale_Up_Factor_Switch=On,AK$9,1)) ->  | AL26: =IF(AL$11="","",SUMIF(LU_Reporting_Period_No,AL$11,Assumptions!$J41:$BQ41)/IF(Scale_Up_Factor_Switch=On,AL$9,1)) ->  | AM26: =IF(AM$11="","",SUMIF(LU_Reporting_Period_No,AM$11,Assumptions!$J41:$BQ41)/IF(Scale_Up_Factor_Switch=On,AM$9,1)) ->  | AN26: =IF(AN$11="","",SUMIF(LU_Reporting_Period_No,AN$11,Assumptions!$J41:$BQ41)/IF(Scale_Up_Factor_Switch=On,AN$9,1)) ->  | AO26: =IF(AO$11="","",SUMIF(LU_Reporting_Period_No,AO$11,Assumptions!$J41:$BQ41)/IF(Scale_Up_Factor_Switch=On,AO$9,1)) ->  | AP26: =IF(AP$11="","",SUMIF(LU_Reporting_Period_No,AP$11,Assumptions!$J41:$BQ41)/IF(Scale_Up_Factor_Switch=On,AP$9,1)) ->  | AQ26: =IF(AQ$11="","",SUMIF(LU_Reporting_Period_No,AQ$11,Assumptions!$J41:$BQ41)/IF(Scale_Up_Factor_Switch=On,AQ$9,1)) ->  | AR26: =IF(AR$11="","",SUMIF(LU_Reporting_Period_No,AR$11,Assumptions!$J41:$BQ41)/IF(Scale_Up_Factor_Switch=On,AR$9,1)) ->  | AS26: =IF(AS$11="","",SUMIF(LU_Reporting_Period_No,AS$11,Assumptions!$J41:$BQ41)/IF(Scale_Up_Factor_Switch=On,AS$9,1)) ->  | AT26: =IF(AT$11="","",SUMIF(LU_Reporting_Period_No,AT$11,Assumptions!$J41:$BQ41)/IF(Scale_Up_Factor_Switch=On,AT$9,1)) ->  | AU26: =IF(AU$11="","",SUMIF(LU_Reporting_Period_No,AU$11,Assumptions!$J41:$BQ41)/IF(Scale_Up_Factor_Switch=On,AU$9,1)) ->  | AV26: =IF(AV$11="","",SUMIF(LU_Reporting_Period_No,AV$11,Assumptions!$J41:$BQ41)/IF(Scale_Up_Factor_Switch=On,AV$9,1)) ->  | AW26: =IF(AW$11="","",SUMIF(LU_Reporting_Period_No,AW$11,Assumptions!$J41:$BQ41)/IF(Scale_Up_Factor_Switch=On,AW$9,1)) ->  | AX26: =IF(AX$11="","",SUMIF(LU_Reporting_Period_No,AX$11,Assumptions!$J41:$BQ41)/IF(Scale_Up_Factor_Switch=On,AX$9,1)) ->  | AY26: =IF(AY$11="","",SUMIF(LU_Reporting_Period_No,AY$11,Assumptions!$J41:$BQ41)/IF(Scale_Up_Factor_Switch=On,AY$9,1)) ->  | AZ26: =IF(AZ$11="","",SUMIF(LU_Reporting_Period_No,AZ$11,Assumptions!$J41:$BQ41)/IF(Scale_Up_Factor_Switch=On,AZ$9,1)) ->  | BA26: =IF(BA$11="","",SUMIF(LU_Reporting_Period_No,BA$11,Assumptions!$J41:$BQ41)/IF(Scale_Up_Factor_Switch=On,BA$9,1)) ->  | BB26: =IF(BB$11="","",SUMIF(LU_Reporting_Period_No,BB$11,Assumptions!$J41:$BQ41)/IF(Scale_Up_Factor_Switch=On,BB$9,1)) ->  | BC26: =IF(BC$11="","",SUMIF(LU_Reporting_Period_No,BC$11,Assumptions!$J41:$BQ41)/IF(Scale_Up_Factor_Switch=On,BC$9,1)) ->  | BD26: =IF(BD$11="","",SUMIF(LU_Reporting_Period_No,BD$11,Assumptions!$J41:$BQ41)/IF(Scale_Up_Factor_Switch=On,BD$9,1)) ->  | BE26: =IF(BE$11="","",SUMIF(LU_Reporting_Period_No,BE$11,Assumptions!$J41:$BQ41)/IF(Scale_Up_Factor_Switch=On,BE$9,1)) ->  | BF26: =IF(BF$11="","",SUMIF(LU_Reporting_Period_No,BF$11,Assumptions!$J41:$BQ41)/IF(Scale_Up_Factor_Switch=On,BF$9,1)) ->  | BG26: =IF(BG$11="","",SUMIF(LU_Reporting_Period_No,BG$11,Assumptions!$J41:$BQ41)/IF(Scale_Up_Factor_Switch=On,BG$9,1)) ->  | BH26: =IF(BH$11="","",SUMIF(LU_Reporting_Period_No,BH$11,Assumptions!$J41:$BQ41)/IF(Scale_Up_Factor_Switch=On,BH$9,1)) ->  | BI26: =IF(BI$11="","",SUMIF(LU_Reporting_Period_No,BI$11,Assumptions!$J41:$BQ41)/IF(Scale_Up_Factor_Switch=On,BI$9,1)) ->  | BJ26: =IF(BJ$11="","",SUMIF(LU_Reporting_Period_No,BJ$11,Assumptions!$J41:$BQ41)/IF(Scale_Up_Factor_Switch=On,BJ$9,1)) ->  | BK26: =IF(BK$11="","",SUMIF(LU_Reporting_Period_No,BK$11,Assumptions!$J41:$BQ41)/IF(Scale_Up_Factor_Switch=On,BK$9,1)) ->  | BL26: =IF(BL$11="","",SUMIF(LU_Reporting_Period_No,BL$11,Assumptions!$J41:$BQ41)/IF(Scale_Up_Factor_Switch=On,BL$9,1)) ->  | BM26: =IF(BM$11="","",SUMIF(LU_Reporting_Period_No,BM$11,Assumptions!$J41:$BQ41)/IF(Scale_Up_Factor_Switch=On,BM$9,1)) ->  | BN26: =IF(BN$11="","",SUMIF(LU_Reporting_Period_No,BN$11,Assumptions!$J41:$BQ41)/IF(Scale_Up_Factor_Switch=On,BN$9,1)) ->  | BO26: =IF(BO$11="","",SUMIF(LU_Reporting_Period_No,BO$11,Assumptions!$J41:$BQ41)/IF(Scale_Up_Factor_Switch=On,BO$9,1)) ->  | BP26: =IF(BP$11="","",SUMIF(LU_Reporting_Period_No,BP$11,Assumptions!$J41:$BQ41)/IF(Scale_Up_Factor_Switch=On,BP$9,1)) ->  | BQ26: =IF(BQ$11="","",SUMIF(LU_Reporting_Period_No,BQ$11,Assumptions!$J41:$BQ41)/IF(Scale_Up_Factor_Switch=On,BQ$9,1)) -> 
E27: =Assumptions!E42 -> COGS | G27: =Assumptions!G42 -> $'000 | J27: =IF(J$11="","",SUMIF(LU_Reporting_Period_No,J$11,Assumptions!$J42:$BQ42)/IF(Scale_Up_Factor_Switch=On,J$9,1)) -> -135 | K27: =IF(K$11="","",SUMIF(LU_Reporting_Period_No,K$11,Assumptions!$J42:$BQ42)/IF(Scale_Up_Factor_Switch=On,K$9,1)) -> -243 | L27: =IF(L$11="","",SUMIF(LU_Reporting_Period_No,L$11,Assumptions!$J42:$BQ42)/IF(Scale_Up_Factor_Switch=On,L$9,1)) -> -156 | M27: =IF(M$11="","",SUMIF(LU_Reporting_Period_No,M$11,Assumptions!$J42:$BQ42)/IF(Scale_Up_Factor_Switch=On,M$9,1)) -> -181 | N27: =IF(N$11="","",SUMIF(LU_Reporting_Period_No,N$11,Assumptions!$J42:$BQ42)/IF(Scale_Up_Factor_Switch=On,N$9,1)) -> -117 | O27: =IF(O$11="","",SUMIF(LU_Reporting_Period_No,O$11,Assumptions!$J42:$BQ42)/IF(Scale_Up_Factor_Switch=On,O$9,1)) -> -140 | P27: =IF(P$11="","",SUMIF(LU_Reporting_Period_No,P$11,Assumptions!$J42:$BQ42)/IF(Scale_Up_Factor_Switch=On,P$9,1)) -> -199 | Q27: =IF(Q$11="","",SUMIF(LU_Reporting_Period_No,Q$11,Assumptions!$J42:$BQ42)/IF(Scale_Up_Factor_Switch=On,Q$9,1)) -> -181 | R27: =IF(R$11="","",SUMIF(LU_Reporting_Period_No,R$11,Assumptions!$J42:$BQ42)/IF(Scale_Up_Factor_Switch=On,R$9,1)) -> -230 | S27: =IF(S$11="","",SUMIF(LU_Reporting_Period_No,S$11,Assumptions!$J42:$BQ42)/IF(Scale_Up_Factor_Switch=On,S$9,1)) -> -119 | T27: =IF(T$11="","",SUMIF(LU_Reporting_Period_No,T$11,Assumptions!$J42:$BQ42)/IF(Scale_Up_Factor_Switch=On,T$9,1)) -> -184 | U27: =IF(U$11="","",SUMIF(LU_Reporting_Period_No,U$11,Assumptions!$J42:$BQ42)/IF(Scale_Up_Factor_Switch=On,U$9,1)) -> -114 | V27: =IF(V$11="","",SUMIF(LU_Reporting_Period_No,V$11,Assumptions!$J42:$BQ42)/IF(Scale_Up_Factor_Switch=On,V$9,1)) -> -457 | W27: =IF(W$11="","",SUMIF(LU_Reporting_Period_No,W$11,Assumptions!$J42:$BQ42)/IF(Scale_Up_Factor_Switch=On,W$9,1)) -> -545 | X27: =IF(X$11="","",SUMIF(LU_Reporting_Period_No,X$11,Assumptions!$J42:$BQ42)/IF(Scale_Up_Factor_Switch=On,X$9,1)) -> -507 | Y27: =IF(Y$11="","",SUMIF(LU_Reporting_Period_No,Y$11,Assumptions!$J42:$BQ42)/IF(Scale_Up_Factor_Switch=On,Y$9,1)) -> -534 | Z27: =IF(Z$11="","",SUMIF(LU_Reporting_Period_No,Z$11,Assumptions!$J42:$BQ42)/IF(Scale_Up_Factor_Switch=On,Z$9,1)) -> -1031 | AA27: =IF(AA$11="","",SUMIF(LU_Reporting_Period_No,AA$11,Assumptions!$J42:$BQ42)/IF(Scale_Up_Factor_Switch=On,AA$9,1)) -> -1072 | AB27: =IF(AB$11="","",SUMIF(LU_Reporting_Period_No,AB$11,Assumptions!$J42:$BQ42)/IF(Scale_Up_Factor_Switch=On,AB$9,1)) -> -2195 | AC27: =IF(AC$11="","",SUMIF(LU_Reporting_Period_No,AC$11,Assumptions!$J42:$BQ42)/IF(Scale_Up_Factor_Switch=On,AC$9,1)) -> -2193 | AD27: =IF(AD$11="","",SUMIF(LU_Reporting_Period_No,AD$11,Assumptions!$J42:$BQ42)/IF(Scale_Up_Factor_Switch=On,AD$9,1)) ->  | AE27: =IF(AE$11="","",SUMIF(LU_Reporting_Period_No,AE$11,Assumptions!$J42:$BQ42)/IF(Scale_Up_Factor_Switch=On,AE$9,1)) ->  | AF27: =IF(AF$11="","",SUMIF(LU_Reporting_Period_No,AF$11,Assumptions!$J42:$BQ42)/IF(Scale_Up_Factor_Switch=On,AF$9,1)) ->  | AG27: =IF(AG$11="","",SUMIF(LU_Reporting_Period_No,AG$11,Assumptions!$J42:$BQ42)/IF(Scale_Up_Factor_Switch=On,AG$9,1)) ->  | AH27: =IF(AH$11="","",SUMIF(LU_Reporting_Period_No,AH$11,Assumptions!$J42:$BQ42)/IF(Scale_Up_Factor_Switch=On,AH$9,1)) ->  | AI27: =IF(AI$11="","",SUMIF(LU_Reporting_Period_No,AI$11,Assumptions!$J42:$BQ42)/IF(Scale_Up_Factor_Switch=On,AI$9,1)) ->  | AJ27: =IF(AJ$11="","",SUMIF(LU_Reporting_Period_No,AJ$11,Assumptions!$J42:$BQ42)/IF(Scale_Up_Factor_Switch=On,AJ$9,1)) ->  | AK27: =IF(AK$11="","",SUMIF(LU_Reporting_Period_No,AK$11,Assumptions!$J42:$BQ42)/IF(Scale_Up_Factor_Switch=On,AK$9,1)) ->  | AL27: =IF(AL$11="","",SUMIF(LU_Reporting_Period_No,AL$11,Assumptions!$J42:$BQ42)/IF(Scale_Up_Factor_Switch=On,AL$9,1)) ->  | AM27: =IF(AM$11="","",SUMIF(LU_Reporting_Period_No,AM$11,Assumptions!$J42:$BQ42)/IF(Scale_Up_Factor_Switch=On,AM$9,1)) ->  | AN27: =IF(AN$11="","",SUMIF(LU_Reporting_Period_No,AN$11,Assumptions!$J42:$BQ42)/IF(Scale_Up_Factor_Switch=On,AN$9,1)) ->  | AO27: =IF(AO$11="","",SUMIF(LU_Reporting_Period_No,AO$11,Assumptions!$J42:$BQ42)/IF(Scale_Up_Factor_Switch=On,AO$9,1)) ->  | AP27: =IF(AP$11="","",SUMIF(LU_Reporting_Period_No,AP$11,Assumptions!$J42:$BQ42)/IF(Scale_Up_Factor_Switch=On,AP$9,1)) ->  | AQ27: =IF(AQ$11="","",SUMIF(LU_Reporting_Period_No,AQ$11,Assumptions!$J42:$BQ42)/IF(Scale_Up_Factor_Switch=On,AQ$9,1)) ->  | AR27: =IF(AR$11="","",SUMIF(LU_Reporting_Period_No,AR$11,Assumptions!$J42:$BQ42)/IF(Scale_Up_Factor_Switch=On,AR$9,1)) ->  | AS27: =IF(AS$11="","",SUMIF(LU_Reporting_Period_No,AS$11,Assumptions!$J42:$BQ42)/IF(Scale_Up_Factor_Switch=On,AS$9,1)) ->  | AT27: =IF(AT$11="","",SUMIF(LU_Reporting_Period_No,AT$11,Assumptions!$J42:$BQ42)/IF(Scale_Up_Factor_Switch=On,AT$9,1)) ->  | AU27: =IF(AU$11="","",SUMIF(LU_Reporting_Period_No,AU$11,Assumptions!$J42:$BQ42)/IF(Scale_Up_Factor_Switch=On,AU$9,1)) ->  | AV27: =IF(AV$11="","",SUMIF(LU_Reporting_Period_No,AV$11,Assumptions!$J42:$BQ42)/IF(Scale_Up_Factor_Switch=On,AV$9,1)) ->  | AW27: =IF(AW$11="","",SUMIF(LU_Reporting_Period_No,AW$11,Assumptions!$J42:$BQ42)/IF(Scale_Up_Factor_Switch=On,AW$9,1)) ->  | AX27: =IF(AX$11="","",SUMIF(LU_Reporting_Period_No,AX$11,Assumptions!$J42:$BQ42)/IF(Scale_Up_Factor_Switch=On,AX$9,1)) ->  | AY27: =IF(AY$11="","",SUMIF(LU_Reporting_Period_No,AY$11,Assumptions!$J42:$BQ42)/IF(Scale_Up_Factor_Switch=On,AY$9,1)) ->  | AZ27: =IF(AZ$11="","",SUMIF(LU_Reporting_Period_No,AZ$11,Assumptions!$J42:$BQ42)/IF(Scale_Up_Factor_Switch=On,AZ$9,1)) ->  | BA27: =IF(BA$11="","",SUMIF(LU_Reporting_Period_No,BA$11,Assumptions!$J42:$BQ42)/IF(Scale_Up_Factor_Switch=On,BA$9,1)) ->  | BB27: =IF(BB$11="","",SUMIF(LU_Reporting_Period_No,BB$11,Assumptions!$J42:$BQ42)/IF(Scale_Up_Factor_Switch=On,BB$9,1)) ->  | BC27: =IF(BC$11="","",SUMIF(LU_Reporting_Period_No,BC$11,Assumptions!$J42:$BQ42)/IF(Scale_Up_Factor_Switch=On,BC$9,1)) ->  | BD27: =IF(BD$11="","",SUMIF(LU_Reporting_Period_No,BD$11,Assumptions!$J42:$BQ42)/IF(Scale_Up_Factor_Switch=On,BD$9,1)) ->  | BE27: =IF(BE$11="","",SUMIF(LU_Reporting_Period_No,BE$11,Assumptions!$J42:$BQ42)/IF(Scale_Up_Factor_Switch=On,BE$9,1)) ->  | BF27: =IF(BF$11="","",SUMIF(LU_Reporting_Period_No,BF$11,Assumptions!$J42:$BQ42)/IF(Scale_Up_Factor_Switch=On,BF$9,1)) ->  | BG27: =IF(BG$11="","",SUMIF(LU_Reporting_Period_No,BG$11,Assumptions!$J42:$BQ42)/IF(Scale_Up_Factor_Switch=On,BG$9,1)) ->  | BH27: =IF(BH$11="","",SUMIF(LU_Reporting_Period_No,BH$11,Assumptions!$J42:$BQ42)/IF(Scale_Up_Factor_Switch=On,BH$9,1)) ->  | BI27: =IF(BI$11="","",SUMIF(LU_Reporting_Period_No,BI$11,Assumptions!$J42:$BQ42)/IF(Scale_Up_Factor_Switch=On,BI$9,1)) ->  | BJ27: =IF(BJ$11="","",SUMIF(LU_Reporting_Period_No,BJ$11,Assumptions!$J42:$BQ42)/IF(Scale_Up_Factor_Switch=On,BJ$9,1)) ->  | BK27: =IF(BK$11="","",SUMIF(LU_Reporting_Period_No,BK$11,Assumptions!$J42:$BQ42)/IF(Scale_Up_Factor_Switch=On,BK$9,1)) ->  | BL27: =IF(BL$11="","",SUMIF(LU_Reporting_Period_No,BL$11,Assumptions!$J42:$BQ42)/IF(Scale_Up_Factor_Switch=On,BL$9,1)) ->  | BM27: =IF(BM$11="","",SUMIF(LU_Reporting_Period_No,BM$11,Assumptions!$J42:$BQ42)/IF(Scale_Up_Factor_Switch=On,BM$9,1)) ->  | BN27: =IF(BN$11="","",SUMIF(LU_Reporting_Period_No,BN$11,Assumptions!$J42:$BQ42)/IF(Scale_Up_Factor_Switch=On,BN$9,1)) ->  | BO27: =IF(BO$11="","",SUMIF(LU_Reporting_Period_No,BO$11,Assumptions!$J42:$BQ42)/IF(Scale_Up_Factor_Switch=On,BO$9,1)) ->  | BP27: =IF(BP$11="","",SUMIF(LU_Reporting_Period_No,BP$11,Assumptions!$J42:$BQ42)/IF(Scale_Up_Factor_Switch=On,BP$9,1)) ->  | BQ27: =IF(BQ$11="","",SUMIF(LU_Reporting_Period_No,BQ$11,Assumptions!$J42:$BQ42)/IF(Scale_Up_Factor_Switch=On,BQ$9,1)) -> 
E29: =Assumptions!E44 -> Gross Profit | G29: =Assumptions!G44 -> $'000 | J29: =IF(J$11="","",SUM(J26:J27)) -> 208 | K29: =IF(K$11="","",SUM(K26:K27)) -> -9 | L29: -42 | M29: 31 | N29: 260 | O29: 7 | P29: -48 | Q29: 109 | R29: 98 | S29: 208 | T29: 86 | U29: 82 | V29: 396 | W29: 232 | X29: -57 | Y29: 106 | Z29: 571 | AA29: 348 | AB29: 1036 | AC29: 668
E31: =Assumptions!E46 -> Gross Margin | G31: =Assumptions!G46 -> % | J31: =IF(J$11="","",IF(J26,J29/J26,"")) -> 0.6064139942 | K31: =IF(K$11="","",IF(K26,K29/K26,"")) -> -0.03846153846 | L31: -0.3684210526 | M31: 0.1462264151 | N31: 0.6896551724 | O31: 0.04761904762 | P31: -0.3178807947 | Q31: 0.375862069 | R31: 0.2987804878 | S31: 0.6360856269 | T31: 0.3185185185 | U31: 0.4183673469 | V31: 0.4642438453 | W31: 0.2985842986 | X31: -0.1266666667 | Y31: 0.165625 | Z31: 0.3564294632 | AA31: 0.2450704225 | AB31: 0.3206437635 | AC31: 0.2334847955

Sheet Lookup Data
A1: =IF(ISERROR(RIGHT(CELL("filename",A1),LEN(CELL("filename",A1))-FIND("]",CELL("filename",A1)))), "", RIGHT(CELL("filename",A1),LEN(CELL("filename",A1))-FIND("]",CELL("filename",A1)))) -> Lookup Data
A2: =Model_Name -> SP Aggregating Time Periods.xlsm
A3: Navigator
B4: Error Checks: | G4: =Overall_Error_Check -> 0
B6: =MAX($B$5:$B5)+1 -> 1 | C6: On or Off
C8: ="LU_"&SUBSTITUTE(C6," ","_") -> LU_On_or_Off
F10: =C6 -> On or Off
F11: On | H11: =C8 -> LU_On_or_Off
F12: Off

Sheet Error Checks
A1: =IF(ISERROR(RIGHT(CELL("filename",A1),LEN(CELL("filename",A1))-FIND("]",CELL("filename",A1)))), "", RIGHT(CELL("filename",A1),LEN(CELL("filename",A1))-FIND("]",CELL("filename",A1)))) -> Error Checks
A2: =Model_Name -> SP Aggregating Time Periods.xlsm
A3: Navigator
B4: Error Checks: | F4: =Overall_Error_Check -> 0
B6: =MAX($B$5:$B5)+1 -> 1 | C6: Error Checks
C8: Summary of Errors
D10: Assumptions
E12: Not Used
E17: =C8 -> Summary of Errors | I17: =MIN(1,SUM(I11:I15)) -> 0
